Department Family,Entity,Payment Date,Expense Type,Expense Area,Supplier,System Transaction Number,Amount
MOJ,NOMS,01/06/2010,WIP - Acquisitions,Estates Capacity,WILLMOTT DIXON CONSTRUCTION LTD,3563357,257343.80
MOJ,NOMS,01/06/2010,Training and Further Education Courses,Learning and Development Group,U.W.C.N,3558872,29727.50
MOJ,NOMS,01/06/2010,Contracted-out Escorts,Prisoner Escort & Custody Service (PECS),SERCO LTD,3552174,96561.33
MOJ,NOMS,01/06/2010,"New structural works, structural maintenance and equipment",Portland,RSW ROOFING LIMITED,3563632,33023.37
MOJ,NOMS,01/06/2010,Buildings - Acquisitions,Cardiff,ROKBUILD LTD,3484618,136156.65
MOJ,NOMS,01/06/2010,"New structural works, structural maintenance and equipment",East of England Regional NOMS Office,PRINCEBUILD,3563539,77987.39
MOJ,NOMS,01/06/2010,Contracted-out Probation Trusts,Norfolk & Suffolk Probation Trust,NORFOLK AND SUFFOLK PROBATION TRUST,3561636,1749601.00
MOJ,NOMS,01/06/2010,WIP - Acquisitions,Estates Capacity,LOWDHAM GRANGE PRISON SERVICES LTD,3530370,243523.45
MOJ,NOMS,01/06/2010,WIP - Acquisitions,Estates Capacity,KIER REGIONAL LTD,3563400,299475.78
MOJ,NOMS,01/06/2010,WIP - Acquisitions,Estates Capacity,KIER REGIONAL LTD,3523878,108805.00
MOJ,NOMS,01/06/2010,WIP - Acquisitions,Estates Capacity,KIER REGIONAL LTD,3517944,105564.35
MOJ,NOMS,01/06/2010,WIP - Acquisitions,Estates Capacity,KIER REGIONAL LTD,3487442,64508.36
MOJ,NOMS,01/06/2010,WIP - Professional Fees,Estates Capacity,JACOBS ENGINEERING UK,3560506,32436.68
MOJ,NOMS,01/06/2010,WIP - Professional Fees,Estates Capacity,JACOBS ENGINEERING UK,3560503,28435.00
MOJ,NOMS,01/06/2010,WIP - Professional Fees,Estates Capacity,JACOBS ENGINEERING UK,3561083,26139.77
MOJ,NOMS,01/06/2010,WIP - Acquisitions,NOMIS Programme,HP ENTERPRISE SERVICES UK LTD,3542979,1358165.02
MOJ,NOMS,01/06/2010,Contract IT Maintenance,NOMS ICT,HP ENTERPRISE SERVICES UK LTD,3532056,935539.54
MOJ,NOMS,01/06/2010,Contracted-out Computer Services,NOMIS Programme,HP ENTERPRISE SERVICES UK LTD,3542979,175130.85
MOJ,NOMS,01/06/2010,Legal Representation,Chief Operating Officers Office,HER MAJESTY'S COURTS SERVICE,3563788,120020.88
MOJ,NOMS,01/06/2010,WIP - Acquisitions,Estates Capacity,HENRY BOOT CONSTRUCTION (U K) LTD,3491623,467763.59
MOJ,NOMS,01/06/2010,WIP - Professional Fees,Estates Capacity,FAITHFUL + GOULD,3551890,34145.85
MOJ,NOMS,01/06/2010,Specialist Contractors,Procurement Group,DRIVERS JONAS LLP,3528443,78187.47
MOJ,NOMS,01/06/2010,"New structural works, structural maintenance and equipment",Wymott,COOK FIRE LTD,3563899,28899.71
MOJ,NOMS,01/06/2010,Gas,Lewes,COFATHEC ENERGY SERVICES UK LTD,3518404,53354.84
MOJ,NOMS,01/06/2010,Subsistence,HOPPS Payroll Charge,CALDER CONFERENCE,3563699,105746.28
MOJ,NOMS,01/06/2010,Subsistence,HOPPS Payroll Charge,CALDER CONFERENCE,3563698,94839.81
MOJ,NOMS,01/06/2010,Contract IT Maintenance,MoJ ICT,CABLE AND WIRELESS,3563692,97370.50
MOJ,NOMS,01/06/2010,Contracted-out Probation Trusts,Bedfordshire Probation Trust,BEDFORDSHIRE PROBATION TRUST,3546702,803147.00
MOJ,NOMS,01/06/2010,Drugs,Rochester,A A H PHARMACEUTICALS LTD,3563653,49741.02
MOJ,NOMS,01/06/2010,Rates and Ground Rents,Estates Capacity,DURHAM CITY COUNCIL,3472465,45559.36
MOJ,NOMS,01/06/2010,Rates and Ground Rents,Estates Capacity,DURHAM COUNTY COUNCIL,3472467,28152.00
MOJ,NOMS,02/06/2010,Water and Sewage,Kirkham,UNITED UTILITIES WATER PLC,3495074,29054.52
MOJ,NOMS,02/06/2010,Contracted-out Visitor's Centres,Highdown,THE VISITORS CENTRE,3565026,40000.00
MOJ,NOMS,02/06/2010,Funding payments to Probation Boards,West Midlands DOMS Office,STAFFORDSHIRE AND WEST MIDLANDS PROBATION TRUST,3563498,4200000.00
MOJ,NOMS,02/06/2010,Contracted-out Probation Trusts,South Yorkshire Probation Trust,SOUTH YORKSHIRE PROBATION TRUST,3551572,1880000.00
MOJ,NOMS,02/06/2010,Water and Sewage,Glen Parva,SEVERN TRENT WATER LTD,3565165,38251.11
MOJ,NOMS,02/06/2010,Contract IT Maintenance,Performance Information and Analysis Group,MOUCHEL MANAGEMENT CONSULTING LIMITED,3552748,74406.06
MOJ,NOMS,02/06/2010,Rates and Ground Rents,Estates Capacity,HUNTINGDONSHIRE DISTRICT COUNCIL,3565145,37132.40
MOJ,NOMS,02/06/2010,Rates and Ground Rents,Director of Finance Office,HOME OFFICE,3503828,229000.00
MOJ,NOMS,02/06/2010,Other - Acquisitions,Blantyre House,FORD MOTOR CO LTD,3561497,27256.89
MOJ,NOMS,02/06/2010,Other - Acquisitions,Warren Hill,FORD MOTOR CO LTD,3529469,25597.78
MOJ,NOMS,02/06/2010,Office Equipment Purchases Under 10k,Haverigg,CROWN FLOORING LTD,3564557,28479.31
MOJ,NOMS,02/06/2010,Gas,Belmarsh,CORONA ENERGY RETAIL 4 LTD,3509537,39359.67
MOJ,NOMS,02/06/2010,Rates and Ground Rents,Estates Capacity,CHERWELL DISTRICT COUNCIL,3565162,138225.00
MOJ,NOMS,02/06/2010,Rates and Ground Rents,Estates Capacity,CHERWELL DISTRICT COUNCIL,3565156,57357.62
MOJ,NOMS,02/06/2010,Contracted-out Building Maintenance,Brixton,CARILLION CONSTRUCTION LTD,3526652,162911.12
MOJ,NOMS,02/06/2010,VISA Costs,MOJ Shared Services NOMS Delivery,ARVAL UK LTD,3565171,70384.02
MOJ,NOMS,02/06/2010,VISA Costs,MOJ Shared Services NOMS Delivery,ARVAL UK LTD,3565174,64242.11
MOJ,NOMS,02/06/2010,"New structural works, structural maintenance and equipment",Feltham,ARK BUILD PLC,3511649,202352.28
MOJ,NOMS,03/06/2010,Water and Sewage,Manchester,UNITED UTILITIES WATER PLC,3567997,37053.26
MOJ,NOMS,03/06/2010,Water and Sewage,Lancaster Farms,UNITED UTILITIES WATER PLC,3567987,31111.10
MOJ,NOMS,03/06/2010,Contracted-out Probation Boards,Woodhill,THAMES VALLEY PROBATION TRUST,3539181,34213.30
MOJ,NOMS,03/06/2010,Contracted-out Resettlement Services,ROM - Yorkshire & Humberside,SHELTER,3567386,37711.54
MOJ,NOMS,03/06/2010,Contracted-out Building Maintenance,Hull,SANGWIN LIMITED,3518909,66511.20
MOJ,NOMS,03/06/2010,Contracted-out operation of prisons and detention centres,Ashfield,PUCKLECHURCH CUSTODIAL SERVICES LTD,3566062,2093492.00
MOJ,NOMS,03/06/2010,Contracted-out operation of prisons and detention centres,Lowdham Grange,LOWDHAM GRANGE PRISON SERVICES LTD,3567410,2043476.03
MOJ,NOMS,03/06/2010,Contracted-out operation of prisons and detention centres,Lowdham Grange,LOWDHAM GRANGE PRISON SERVICES LTD,3567409,44322.56
MOJ,NOMS,03/06/2010,Counselling & Advisory Costs,Preston,LIFELINE PROJECT,3564964,29416.00
MOJ,NOMS,03/06/2010,Contracted-out Probation Trusts,South East DOMS Office,KENT PROBATION TRUST,3564240,550000.00
MOJ,NOMS,03/06/2010,WIP - Acquisitions,Estates Capacity,INTERSERVE PROJECT SERVICES LTD,3547165,167441.99
MOJ,NOMS,03/06/2010,Contracted-out Other Services,Quantum,HP ENTERPRISE SERVICES UK LTD,3568227,177420.71
MOJ,NOMS,03/06/2010,Contracted-out Other Services,Quantum,HP ENTERPRISE SERVICES UK LTD,3568220,73072.20
MOJ,NOMS,03/06/2010,Contracted-out Computer Services,Quantum,HP ENTERPRISE SERVICES UK LTD,3568218,48094.17
MOJ,NOMS,03/06/2010,Contracted-out Computer Services,Quantum,HP ENTERPRISE SERVICES UK LTD,3532058,-42422.27
MOJ,NOMS,03/06/2010,Contracted-out Computer Services,Quantum,HP ENTERPRISE SERVICES UK LTD,3568216,31692.00
MOJ,NOMS,03/06/2010,Contracted-out Other Services,Quantum,HP ENTERPRISE SERVICES UK LTD,3568210,26975.91
MOJ,NOMS,03/06/2010,Contracted-out Building Maintenance,Wetherby,G WILKINSON CONSTRUCTION LTD,3540866,57777.30
MOJ,NOMS,03/06/2010,Prison Shop Cost of Sales,Chief Operating Officers Office,EXEL EUROPE1 LTD,3565568,343740.43
MOJ,NOMS,03/06/2010,Prison Shop Cost of Sales (No VAT),Chief Operating Officers Office,EXEL EUROPE1 LTD,3565568,184034.30
MOJ,NOMS,03/06/2010,Buildings - Acquisitions,Bullingdon,ELITE SYSTEMS (GB) LTD,3519428,45029.52
MOJ,NOMS,03/06/2010,Electricity,Lindholme,EDF ENERGY,3540121,53019.91
MOJ,NOMS,03/06/2010,Electricity,Highdown,EDF ENERGY,3539958,36398.05
MOJ,NOMS,03/06/2010,Water and Sewage,Cardiff,DWR CMYRU WELSH WATER,3547529,48253.78
MOJ,NOMS,03/06/2010,Rates and Ground Rents,Estates Capacity,DACORUM BOROUGH COUNCIL,3565177,26907.93
MOJ,NOMS,03/06/2010,Travel - Non-Taxable,HOPPS Payroll Charge,CARLSON WAGONLIT TRAVEL,3568015,81168.12
MOJ,NOMS,03/06/2010,Water and Sewage,Guys Marsh,BRISTOL AND WESSEX WATER BILLING SERVICES LTD,3568157,26013.11
MOJ,NOMS,03/06/2010,"New structural works, structural maintenance and equipment",East Midlands DOMS Office,BOOTHVILLE ROOFING LTD,3487009,30821.15
MOJ,NOMS,03/06/2010,Counselling & Advisory Costs,Bristol,AVON & WILTSHIRE MENTAL HEALTH PARTNERSHIP N H S TRUST,3564416,31426.00
MOJ,NOMS,04/06/2010,Water and Sewage,Liverpool,UNITED UTILITIES WATER PLC,3570102,31127.34
MOJ,NOMS,04/06/2010,Contracted-out Electronic Monitoring,National Operations Group,SERCO LTD,3566548,3680295.68
MOJ,NOMS,04/06/2010,Contracted-out Library,Kingston,PORTSMOUTH CITY COUNCIL,3507870,25003.00
MOJ,NOMS,04/06/2010,Specialist Contractors,MOJ Shared Services NOMS Delivery,PARITY RESOURCES LTD,3519303,30171.98
MOJ,NOMS,04/06/2010,Clothing,Offender Employment Skills & Services Group,P & R FABRICS LTD,3566341,27594.55
MOJ,NOMS,04/06/2010,Contract IT Maintenance,MOJ Shared Services NOMS Delivery,ORACLE CORPORATION U K LTD,3565572,89232.02
MOJ,NOMS,04/06/2010,Contracted-out operation of prisons and detention centres,Rye Hill,ONLEY PRISON SERVICES LTD,3569857,46269.46
MOJ,NOMS,04/06/2010,Contracted-out operation of prisons and detention centres,Rye Hill,ONLEY PRISON SERVICES LTD,3569862,33943.06
MOJ,NOMS,04/06/2010,Contracted-out operation of prisons and detention centres,Dovegate,MORETON PRISON SERVICES LTD,3566063,555606.00
MOJ,NOMS,04/06/2010,Contracted-out operation of prisons and detention centres,Dovegate,MORETON PRISON SERVICES LTD,3565549,60829.75
MOJ,NOMS,04/06/2010,Contracted-out operation of prisons and detention centres,Dovegate,MORETON PRISON SERVICES LTD,3565544,40810.24
MOJ,NOMS,04/06/2010,"New structural works, structural maintenance and equipment",East Midlands DOMS Office,LINDUM GROUP LTD,3536486,30059.44
MOJ,NOMS,04/06/2010,WIP - Acquisitions,Estates Capacity,KIER REGIONAL LTD,3536368,211500.00
MOJ,NOMS,04/06/2010,WIP - Professional Fees,Estates Capacity,JACOBS ENGINEERING UK,3569408,39924.23
MOJ,NOMS,04/06/2010,Other - Acquisitions,Kingston,GAME ENGINEERING LTD,3521767,80475.75
MOJ,NOMS,04/06/2010,Contracted-out Escorts,Prisoner Escort & Custody Service (PECS),G4S CARE & JUSTICE SERVICES LTD,3565898,508348.33
MOJ,NOMS,04/06/2010,Discharge Costs,DO NOT USE Operational Policy Unit,DWP - JOB CENTRE PLUS,3457661,160432.96
MOJ,NOMS,04/06/2010,Consultancy,Estates Capacity,DELOITTE MCS LTD,3540525,350800.42
MOJ,NOMS,04/06/2010,Secondments,Area Services,CLEARSPRINGS MANAGEMENT LTD,3502635,111686.21
MOJ,NOMS,04/06/2010,"Books, Stationery & IT Consumables",Offender Employment Skills & Services Group,CARPENTER LTD,3561801,49766.89
MOJ,NOMS,04/06/2010,"Books, Stationery & IT Consumables",Offender Employment Skills & Services Group,CARPENTER LTD,3542532,49714.40
MOJ,NOMS,04/06/2010,Office Equipment Purchases Under 10k,DO NOT USE Offender Assessment & Management Group,CABLE AND WIRELESS,3570089,130279.19
MOJ,NOMS,04/06/2010,Contracted-out operation of prisons and detention centres,Parc,BRIDGEND CUSTODIAL SERVICES LTD,3569813,306349.44
MOJ,NOMS,04/06/2010,Contracted-out operation of prisons and detention centres,Parc,BRIDGEND CUSTODIAL SERVICES LTD,3569807,97854.60
MOJ,NOMS,04/06/2010,Contracted-out operation of prisons and detention centres,Parc,BRIDGEND CUSTODIAL SERVICES LTD,3569805,79310.40
MOJ,NOMS,04/06/2010,Contracted-out operation of prisons and detention centres,Parc,BRIDGEND CUSTODIAL SERVICES LTD,3569808,74183.00
MOJ,NOMS,04/06/2010,Contracted-out operation of prisons and detention centres,Parc,BRIDGEND CUSTODIAL SERVICES LTD,3569811,46137.92
MOJ,NOMS,04/06/2010,Contracted-out operation of prisons and detention centres,Parc,BRIDGEND CUSTODIAL SERVICES LTD,3569812,42510.30
MOJ,NOMS,04/06/2010,Contracted-out Building Maintenance,Dover,B W MAY & SON LTD,3566578,38643.00
MOJ,NOMS,07/06/2010,WIP - Acquisitions,Estates Capacity,WILLMOTT DIXON CONSTRUCTION LTD,3569774,162709.59
MOJ,NOMS,07/06/2010,WIP - Acquisitions,Estates Capacity,WATES CONSTRUCTION LTD,3571176,435701.75
MOJ,NOMS,07/06/2010,"Prisoner Compensation over 5,000",Chief Operating Officers Office,TREASURY SOLICITORS,3572092,30000.00
MOJ,NOMS,07/06/2010,"Prisoner Compensation over 5,000",Chief Operating Officers Office,TREASURY SOLICITORS,3571962,29000.00
MOJ,NOMS,07/06/2010,Contracted-out Resettlement Services,Rehabilitation Services Group,THE CENTRE FOR ECONOMIC & SOCIAL INCLUSION,3572404,30124.40
MOJ,NOMS,07/06/2010,Water and Sewage,Pentonville,THAMES WATER UTILITIES LTD,3543529,29961.52
MOJ,NOMS,07/06/2010,Contract IT Maintenance,NOMS ICT,SUNGARD PUBLIC SECTOR LTD,3490761,38015.65
MOJ,NOMS,07/06/2010,WIP - Professional Fees,Estates Capacity,SCOTT WILSON  LTD,3483001,89128.06
MOJ,NOMS,07/06/2010,Official Postage & Couriers,MOJ Shared Services NOMS Delivery,ROYAL MAIL GROUP PLC,3566752,25506.25
MOJ,NOMS,07/06/2010,General Maintenance Materials,Organisational Development Group,RAVENSTONE (CENTRAL) LTD,3553089,79626.84
MOJ,NOMS,07/06/2010,"New structural works, structural maintenance and equipment",Brixton,PLAYTOP LTD,3500610,40241.25
MOJ,NOMS,07/06/2010,Contracted-out operation of prisons and detention centres,Peterborough,PETERBOROUGH PRISON MANAGEMENT LTD,3570491,50577.12
MOJ,NOMS,07/06/2010,Contracted-out operation of prisons and detention centres,Peterborough,PETERBOROUGH PRISON MANAGEMENT LTD,3570537,38182.08
MOJ,NOMS,07/06/2010,Contracted-out operation of prisons and detention centres,Peterborough,PETERBOROUGH PRISON MANAGEMENT LTD,3570494,37516.06
MOJ,NOMS,07/06/2010,Contracted-out operation of prisons and detention centres,Peterborough,PETERBOROUGH PRISON MANAGEMENT LTD,3570536,33916.25
MOJ,NOMS,07/06/2010,Contracted-out operation of prisons and detention centres,Peterborough,PETERBOROUGH PRISON MANAGEMENT LTD,3570489,26614.17
MOJ,NOMS,07/06/2010,Contracted-out operation of prisons and detention centres,Peterborough,PETERBOROUGH PRISON MANAGEMENT LTD,3570492,25833.08
MOJ,NOMS,07/06/2010,Payments to voluntary Organisations,East of England Regional NOMS Office,ORMISTON CHILDREN & FAMILIES TRUST,3569719,62802.00
MOJ,NOMS,07/06/2010,WIP - Acquisitions,Estates Capacity,MORRISON CONSTRUCTION SERVICES LTD,3573828,550807.89
MOJ,NOMS,07/06/2010,Contracted-out Resettlement Services,NOMS CFO,MERSEYSIDE PROBATION TRUST,3571822,72857.28
MOJ,NOMS,07/06/2010,Contracted-out Resettlement Services,NOMS CFO,MERSEYSIDE PROBATION TRUST,3571362,72857.28
MOJ,NOMS,07/06/2010,WIP - Acquisitions,Estates Capacity,LOWDHAM GRANGE PRISON SERVICES LTD,3571197,182642.00
MOJ,NOMS,07/06/2010,Raw Materials - ESS/LBA Industries,Frankland,L & P (PSCS),3571713,41888.00
MOJ,NOMS,07/06/2010,Contracted-out Probation Trusts,South East DOMS Office,KENT PROBATION TRUST,3572450,103602.00
MOJ,NOMS,07/06/2010,WIP - Acquisitions,Estates Capacity,INTERSERVE PROJECT SERVICES LTD,3570671,186711.50
MOJ,NOMS,07/06/2010,Other - Acquisitions,Lewes,ICP PROJECTS LTD,3572124,39030.48
MOJ,NOMS,07/06/2010,Contract IT Maintenance,MoJ ICT,IBM DIRECT( UNITED KINGDOM) LTD,3499568,184533.07
MOJ,NOMS,07/06/2010,Contracted-out Escorts,Prisoner Escort & Custody Service (PECS),G4S CARE & JUSTICE SERVICES LTD,3565899,951724.00
MOJ,NOMS,07/06/2010,Contracted-out Escorts,Prisoner Escort & Custody Service (PECS),G4S CARE & JUSTICE SERVICES LTD,3565893,675150.87
MOJ,NOMS,07/06/2010,WIP - Professional Fees,Estates Capacity,FAITHFUL + GOULD,3573379,57904.44
MOJ,NOMS,07/06/2010,Counselling & Advisory Costs,Exeter,EXETER DRUGS PROJECT,3570009,27713.00
MOJ,NOMS,07/06/2010,Professional Advice,Estates Capacity,EMERY COURT PROPERTIES LTD,3571015,27286.62
MOJ,NOMS,07/06/2010,Electricity,Holme House,EDF ENERGY,3541357,25756.34
MOJ,NOMS,07/06/2010,Electricity,Wakefield,EDF ENERGY,3539991,25178.50
MOJ,NOMS,07/06/2010,Discharge Costs,DO NOT USE Operational Policy Unit,DWP - JOB CENTRE PLUS,3484120,167039.24
MOJ,NOMS,07/06/2010,Discharge Costs,DO NOT USE Operational Policy Unit,DWP - JOB CENTRE PLUS,3521519,38018.96
MOJ,NOMS,07/06/2010,WIP - Professional Fees,Estates Capacity,CYRIL SWEETT LTD,3529658,26911.35
MOJ,NOMS,07/06/2010,In Cell TV Costs,Unallocated Budgets,COMPUTACENTER (U K) LTD,3571925,77381.79
MOJ,NOMS,07/06/2010,In Cell TV Costs,Unallocated Budgets,COMPUTACENTER (U K) LTD,3571940,68356.62
MOJ,NOMS,07/06/2010,In Cell TV Costs,Unallocated Budgets,COMPUTACENTER (U K) LTD,3571927,45568.44
MOJ,NOMS,07/06/2010,In Cell TV Costs,Unallocated Budgets,COMPUTACENTER (U K) LTD,3571929,25707.18
MOJ,NOMS,07/06/2010,Contracted-out Resettlement Services,Wales/Cymru DOMS Office,CLEARSPRINGS MANAGEMENT LTD,3570496,30437.42
MOJ,NOMS,07/06/2010,Contracted-out Probation Boards,Styal,CHESHIRE PROBATION TRUST,3570432,34501.81
MOJ,NOMS,07/06/2010,WIP - Acquisitions,Estates Capacity,CARILLION JM LIMITED,3566258,382630.53
MOJ,NOMS,07/06/2010,WIP - Acquisitions,Estates Capacity,CARILLION JM LIMITED,3566383,144288.00
MOJ,NOMS,07/06/2010,Subsistence,HOPPS Payroll Charge,CALDER CONFERENCE,3571893,77239.20
MOJ,NOMS,07/06/2010,Subsistence,HOPPS Payroll Charge,CALDER CONFERENCE,3571891,39920.46
MOJ,NOMS,07/06/2010,Other - Acquisitions,Wealstun,BRIGGS EQUIPMENT UK LTD,3573254,58873.38
MOJ,NOMS,07/06/2010,Other - Acquisitions,IW Cluster,BRIGGS EQUIPMENT UK LTD,3573252,27539.65
MOJ,NOMS,07/06/2010,WIP - Acquisitions,Estates Capacity,BRIDGEND CUSTODIAL SERVICES LTD,3569429,220320.73
MOJ,NOMS,07/06/2010,Occupational Health Services,HR Policy & Reward Group,ATOS ORIGIN IT SERVICES UK LTD,3571807,60000.00
MOJ,NOMS,07/06/2010,Contracted-out operation of prisons and detention centres,Bronzefield,ASHFORD PRISON SERVICES LIMITED,3570596,49391.36
MOJ,NOMS,07/06/2010,Contracted-out operation of prisons and detention centres,Bronzefield,ASHFORD PRISON SERVICES LIMITED,3570597,28696.64
MOJ,NOMS,07/06/2010,Contracted-out Catering Services,Hewell,ARAMARK LTD,3541397,28481.37
MOJ,NOMS,08/06/2010,Contracted-out Escorts,Prisoner Escort & Custody Service (PECS),SERCO LTD,3565482,1513632.18
MOJ,NOMS,08/06/2010,Programme,National Operations Group,SERCO LTD,3567746,-72586.80
MOJ,NOMS,08/06/2010,Contracted-out Escorts,Prisoner Escort & Custody Service (PECS),SERCO LTD,3528260,-27619.02
MOJ,NOMS,08/06/2010,Contracted-out operation of prisons and detention centres,Peterborough,PETERBOROUGH PRISON MANAGEMENT LTD,3570495,1350455.08
MOJ,NOMS,08/06/2010,Insurance,Peterborough,PETERBOROUGH PRISON MANAGEMENT LTD,3498884,-94439.02
MOJ,NOMS,08/06/2010,Insurance,Peterborough,PETERBOROUGH PRISON MANAGEMENT LTD,3538432,-91392.60
MOJ,NOMS,08/06/2010,Consultancy,Director of HRs Office & Strategic Planning,PARITY RESOURCES LTD,3562318,256248.37
MOJ,NOMS,08/06/2010,Contracted-out Probation Boards,Whatton,NOTTINGHAM PROBATION COMMITTEE,3572329,50913.53
MOJ,NOMS,08/06/2010,WIP - Acquisitions,Estates Capacity,INTERSERVE PROJECT SERVICES LTD,3569768,274525.83
MOJ,NOMS,08/06/2010,Contracted-out Electronic Monitoring,National Operations Group,G4S CARE & JUSTICE SERVICES LTD,3573532,4340345.01
MOJ,NOMS,08/06/2010,WIP - Professional Fees,Estates Capacity,FAITHFUL + GOULD,3573378,25332.99
MOJ,NOMS,08/06/2010,Meetings/Conf  Refreshments,MOJ Shared Services NOMS Delivery,ESS SUPPORT SERVICES WORLDWIDE,3574029,70587.63
MOJ,NOMS,08/06/2010,In Cell TV Costs,Unallocated Budgets,COMPUTACENTER (U K) LTD,3571946,314683.88
MOJ,NOMS,08/06/2010,Contracted-out Probation Boards,New Hall,CITY OF WAKEFIELD,,-28843.08
MOJ,NOMS,08/06/2010,Contracted-out Probation Trusts,Styal,CHESHIRE PROBATION TRUST,3574072,26907.82
MOJ,NOMS,08/06/2010,Inter-Unit Charge (IUC),Hollesley Bay,CARTUS LIMITED,3574019,85000.00
MOJ,NOMS,08/06/2010,Travel - Non-Taxable,HOPPS Payroll Charge,CARLSON WAGONLIT TRAVEL,3574000,61906.82
MOJ,NOMS,09/06/2010,Contracted-out Probation Trusts,York and North Yorkshire Probation Trust,YORK AND NORTH YORKSHIRE PROBATION TRUST,3566672,976130.07
MOJ,NOMS,09/06/2010,Resource Grants / Grant-in-Aid,Area Services,WOMEN IN PRISON,3577018,123690.00
MOJ,NOMS,09/06/2010,Contracted-out Probation Trusts,Wiltshire Probation Trust,WILTSHIRE PROBATION TRUST,3569109,637992.00
MOJ,NOMS,09/06/2010,Contracted-out Probation Trusts,Wiltshire Probation Trust,WILTSHIRE PROBATION TRUST,3569113,637992.00
MOJ,NOMS,09/06/2010,Contracted-out Probation Trusts,West Yorkshire Probation Trust,WEST YORKSHIRE PROBATION TRUST,3566711,3470900.00
MOJ,NOMS,09/06/2010,Funding payments to Probation Boards,West Midlands DOMS Office,WEST MERCIA PROBATION TRUST,3569921,1135600.00
MOJ,NOMS,09/06/2010,WIP - Acquisitions,Estates Capacity,WATES CONSTRUCTION LTD,3576566,36641.46
MOJ,NOMS,09/06/2010,Funding payments to Probation Boards,West Midlands DOMS Office,WARWICKSHIRE PROBATION TRUST,3570367,400000.00
MOJ,NOMS,09/06/2010,Funding payments to Probation Boards,Wales Probation Trust,WALES PROBATION TRUST,3570599,3711329.00
MOJ,NOMS,09/06/2010,Water and Sewage,Risley,UNITED UTILITIES WATER PLC,3576780,32731.60
MOJ,NOMS,09/06/2010,Contracted-out Resettlement Services,North East DOMS Office,TYNESIDE CYRENIANS LTD,3570170,31920.67
MOJ,NOMS,09/06/2010,"Staff Compensation over 5,000",Gloucester,TREASURY SOLICITORS,3573636,37920.77
MOJ,NOMS,09/06/2010,"New structural works, structural maintenance and equipment",East of England Regional NOMS Office,THROWER & HAMMOND,3536941,26650.05
MOJ,NOMS,09/06/2010,Contract IT Maintenance,MoJ ICT,SUNGARD PUBLIC SECTOR LTD,3576850,190710.00
MOJ,NOMS,09/06/2010,Contracted-out Probation Trusts,Nottinghamshire Probation Trust,NOTTINGHAMSHIRE PROBATION TRUST,3568413,1612000.00
MOJ,NOMS,09/06/2010,Contracted-out Probation Boards,Whatton,NOTTINGHAM PROBATION COMMITTEE,3575645,48458.16
MOJ,NOMS,09/06/2010,Contracted-out Probation Trusts,Northamptonshire Probation Trust,NORTHAMPTONSHIRE PROBATION TRUST,3563996,763083.00
MOJ,NOMS,09/06/2010,Contracted-out Probation Boards,Wayland,NORFOLK AND SUFFOLK PROBATION TRUST,3576075,28684.70
MOJ,NOMS,09/06/2010,Counselling & Advisory Costs,Styal,LIFELINE PROJECT,3565555,33065.92
MOJ,NOMS,09/06/2010,WIP - Acquisitions,Estates Capacity,KIER REGIONAL LTD,3576181,157802.50
MOJ,NOMS,09/06/2010,WIP - Acquisitions,Estates Capacity,KIER REGIONAL LTD,3576360,51700.00
MOJ,NOMS,09/06/2010,WIP - Acquisitions,Estates Capacity,KIER NORTHERN,3568385,600927.90
MOJ,NOMS,09/06/2010,Contracted-out Probation Trusts,South East DOMS Office,KENT PROBATION TRUST,3572449,1500000.00
MOJ,NOMS,09/06/2010,WIP - Acquisitions,Estates Capacity,ISG REGIONS LTD,3572290,276497.48
MOJ,NOMS,09/06/2010,WIP - Acquisitions,Estates Capacity,ISG REGIONS LTD,3572291,203836.65
MOJ,NOMS,09/06/2010,WIP - Acquisitions,Estates Capacity,INTERSERVE PROJECT SERVICES LTD,3575651,221636.73
MOJ,NOMS,09/06/2010,WIP - Acquisitions,Estates Capacity,INTERSERVE PROJECT SERVICES LTD,3576462,65787.08
MOJ,NOMS,09/06/2010,WIP - Acquisitions,MoJ ICT,HP ENTERPRISE SERVICES UK LTD,3575374,102283.42
MOJ,NOMS,09/06/2010,Contract IT Maintenance,MoJ ICT,HP ENTERPRISE SERVICES UK LTD,3575373,72115.67
MOJ,NOMS,09/06/2010,Contracted-out Building Maintenance,Estates Capacity,HOME OFFICE - AFU CASH MANAGEMENT,3550482,67366.14
MOJ,NOMS,09/06/2010,Contracted-out Building Maintenance,Estates Capacity,HOME OFFICE - AFU CASH MANAGEMENT,3550483,66531.17
MOJ,NOMS,09/06/2010,Contracted-out Probation Trusts,Hertfordshire Probation Trust,HERTFORDSHIRE PROBATION TRUST,3570663,958128.00
MOJ,NOMS,09/06/2010,WIP - Acquisitions,Estates Capacity,HENRY BOOT CONSTRUCTION (U K) LTD,3576196,97864.58
MOJ,NOMS,09/06/2010,WIP - Acquisitions,Estates Capacity,HENRY BOOT CONSTRUCTION (U K) LTD,3571052,96754.65
MOJ,NOMS,09/06/2010,Contracted-out Probation Trusts,Greater Manchester Probation Trust,GREATER MANCHESTER PROBATION TRUST,3561704,4327420.00
MOJ,NOMS,09/06/2010,Contract IT Maintenance,NOMS ICT,GLOBAL CROSSING (U K) TELECOMMUNICATIONS LTD,3577010,-63602.26
MOJ,NOMS,09/06/2010,Contract IT Maintenance,NOMS ICT,GLOBAL CROSSING (U K) TELECOMMUNICATIONS LTD,3577007,48662.26
MOJ,NOMS,09/06/2010,Prison Shop Cost of Sales,Chief Operating Officers Office,EXEL EUROPE1 LTD,3575316,388128.70
MOJ,NOMS,09/06/2010,Prison Shop Cost of Sales (No VAT),Chief Operating Officers Office,EXEL EUROPE1 LTD,3575316,206603.50
MOJ,NOMS,09/06/2010,Contracted-out Probation Trusts,Essex Probation Trust,ESSEX PROBATION TRUST,3569069,1621290.00
MOJ,NOMS,09/06/2010,Contracted-out Probation Trusts,Dorset Probation Trust,DORSET PROBATION TRUST,3564172,764391.00
MOJ,NOMS,09/06/2010,Contracted-out Probation Trusts,Devon and Cornwall Probation Trust,DEVON AND CORNWALL PROBATION TRUST,3572206,1645250.00
MOJ,NOMS,09/06/2010,Contracted-out Probation Trusts,Derbyshire Probation Trust,DERBYSHIRE PROBATION TRUST,3566084,1176250.00
MOJ,NOMS,09/06/2010,Drug Treatment and Testing Orders,Rehabilitation Services Group,DEPARTMENT OF HEALTH,3570554,22000000.00
MOJ,NOMS,09/06/2010,Contracted-out Probation Trusts,Cumbria Probation Trust,CUMBRIA PROBATION TRUST,3575100,851063.83
MOJ,NOMS,09/06/2010,Gas,Gartree,COFATHEC ENERGY PFI LTD,3576761,87616.28
MOJ,NOMS,09/06/2010,General Maintenance Materials,Rochester,CLEVELAND SITESAFE LIMITED,3484921,28943.77
MOJ,NOMS,09/06/2010,Contracted-out Other Services,London DOMS Office,CLEARSPRINGS MANAGEMENT LTD,3546283,110063.84
MOJ,NOMS,09/06/2010,Contracted-out Other Services,ROM - North West,CLEARSPRINGS MANAGEMENT LTD,3574057,-86100.92
MOJ,NOMS,09/06/2010,Contracted-out Other Services,ROM - North West,CLEARSPRINGS MANAGEMENT LTD,3574058,82283.75
MOJ,NOMS,09/06/2010,Contracted-out Probation Trusts,Cheshire Probation Trust,CHESHIRE PROBATION TRUST,3570030,1200000.00
MOJ,NOMS,09/06/2010,WIP - Acquisitions,Estates Capacity,CARILLION JM LIMITED,3576415,92078.88
MOJ,NOMS,09/06/2010,Contracted-out Other Services,ROM - North West,BLACKPOOL ADVOCACY,3566037,50000.00
MOJ,NOMS,09/06/2010,Contracted-out Probation Trusts,Avon and Somerset Probation Trust,AVON AND SOMERSET PROBATION TRUST,3576768,3426000.00
MOJ,NOMS,09/06/2010,Contracted-out Probation Trusts,Avon and Somerset Probation Trust,AVON AND SOMERSET PROBATION TRUST,3575927,-2012775.00
MOJ,NOMS,09/06/2010,Contracted-out Probation Trusts,Avon and Somerset Probation Trust,AVON AND SOMERSET PROBATION TRUST,3576191,-2012775.00
MOJ,NOMS,09/06/2010,Contracted-out Probation Trusts,Avon and Somerset Probation Trust,AVON AND SOMERSET PROBATION TRUST,3576132,1713000.00
MOJ,NOMS,09/06/2010,WIP - Professional Fees,Estates Capacity,ATKINS LTD,3569466,62826.43
MOJ,NOMS,09/06/2010,Contracted-out Resettlement Services,NOMS CFO,A4E CONSULTING LTD,3575347,115896.32
MOJ,NOMS,10/06/2010,Clothing,Offender Employment Skills & Services Group,WHITAKER L & SONS (1983) LTD,3552100,36404.02
MOJ,NOMS,10/06/2010,Water and Sewage,Lancaster Farms,UNITED UTILITIES WATER PLC,3540272,45408.52
MOJ,NOMS,10/06/2010,Legal Representation,Director of Probation's Office,TREASURY SOLICITORS,3555878,38224.04
MOJ,NOMS,10/06/2010,Contract IT Maintenance,MoJ ICT,SUNGARD PUBLIC SECTOR LTD,3575208,38015.65
MOJ,NOMS,10/06/2010,Legal Representation,Procurement Group,SIMMONS & SIMMONS,3563115,35331.30
MOJ,NOMS,10/06/2010,Contracted-out Escorts,Prisoner Escort & Custody Service (PECS),SERCO LTD,3565484,1663935.17
MOJ,NOMS,10/06/2010,Contracted-out Escorts,Prisoner Escort & Custody Service (PECS),SERCO LTD,3565483,1042242.83
MOJ,NOMS,10/06/2010,Miscellaneous,Chief Operating Officers Office,PEARSON EDUCATION LTD,3540840,48788.01
MOJ,NOMS,10/06/2010,Contracted-out operation of prisons and detention centres,Rye Hill,ONLEY PRISON SERVICES LTD,3569767,1462921.28
MOJ,NOMS,10/06/2010,Contracted-out Probation Boards,Nottingham,NOTTINGHAM PROBATION COMMITTEE,3575646,45511.91
MOJ,NOMS,10/06/2010,Contracted-out Probation Boards,Nottingham,NOTTINGHAM PROBATION COMMITTEE,3575649,39275.07
MOJ,NOMS,10/06/2010,Contracted-out Probation Boards,Bure,NORFOLK AND SUFFOLK PROBATION TRUST,3576077,38093.52
MOJ,NOMS,10/06/2010,Contracted-out Probation Trusts,Norwich,NORFOLK AND SUFFOLK PROBATION TRUST,3575238,26853.29
MOJ,NOMS,10/06/2010,Contracted-out Probation Boards,Holloway,NATIONAL PROBATION SERVICE,3511178,27799.45
MOJ,NOMS,10/06/2010,Contracted-out operation of prisons and detention centres,Dovegate,MORETON PRISON SERVICES LTD,3567408,2304080.70
MOJ,NOMS,10/06/2010,Contracted-out Probation Trusts,Lincolnshire Probation Trust,LINCOLNSHIRE PROBATION TRUST,3576553,785167.00
MOJ,NOMS,10/06/2010,WIP - Acquisitions,Estates Capacity,INTERSERVE PROJECT SERVICES LTD,3568706,2609002.90
MOJ,NOMS,10/06/2010,WIP - Acquisitions,Estates Capacity,INTERSERVE PROJECT SERVICES LTD,3576461,250407.78
MOJ,NOMS,10/06/2010,WIP - Acquisitions,Estates Capacity,INTERSERVE PROJECT SERVICES LTD,3537920,99924.35
MOJ,NOMS,10/06/2010,Contracted-out Probation Trusts,Humberside Probation Trust,HUMBERSIDE PROBATION TRUST,3575627,1547390.17
MOJ,NOMS,10/06/2010,Contracted-out Computer Services,Business Change Group,HP ENTERPRISE SERVICES UK LTD,3550444,938896.46
MOJ,NOMS,10/06/2010,WIP - Acquisitions,MoJ ICT,HP ENTERPRISE SERVICES UK LTD,3535646,776313.57
MOJ,NOMS,10/06/2010,WIP - Acquisitions,MoJ ICT,HP ENTERPRISE SERVICES UK LTD,3526025,312994.12
MOJ,NOMS,10/06/2010,WIP - Acquisitions,MoJ ICT,HP ENTERPRISE SERVICES UK LTD,3526023,132547.55
MOJ,NOMS,10/06/2010,WIP - Acquisitions,MoJ ICT,HP ENTERPRISE SERVICES UK LTD,3526022,33030.22
MOJ,NOMS,10/06/2010,WIP - Acquisitions,MoJ ICT,HP ENTERPRISE SERVICES UK LTD,3526074,28552.28
MOJ,NOMS,10/06/2010,Contracted-out Computer Services,Quantum,HP ENTERPRISE SERVICES UK LTD,3518443,27394.16
MOJ,NOMS,10/06/2010,WIP - Acquisitions,Estates Capacity,HENRY BOOT CONSTRUCTION (U K) LTD,3483763,520952.66
MOJ,NOMS,10/06/2010,WIP - Acquisitions,Estates Capacity,HENRY BOOT CONSTRUCTION (U K) LTD,3532138,232042.04
MOJ,NOMS,10/06/2010,WIP - Acquisitions,Estates Capacity,HENRY BOOT CONSTRUCTION (U K) LTD,3559761,205151.03
MOJ,NOMS,10/06/2010,WIP - Acquisitions,Estates Capacity,HENRY BOOT CONSTRUCTION (U K) LTD,3576199,50436.88
MOJ,NOMS,10/06/2010,Contracted-out Escorts,Prisoner Escort & Custody Service (PECS),G4S CARE & JUSTICE SERVICES LTD,3565897,1307215.42
MOJ,NOMS,10/06/2010,Contracted-out Escorts,Prisoner Escort & Custody Service (PECS),G4S CARE & JUSTICE SERVICES LTD,3565896,1038035.25
MOJ,NOMS,10/06/2010,Contracted-out Escorts,Prisoner Escort & Custody Service (PECS),G4S CARE & JUSTICE SERVICES LTD,3565900,930440.36
MOJ,NOMS,10/06/2010,Contracted-out Escorts,Prisoner Escort & Custody Service (PECS),G4S CARE & JUSTICE SERVICES LTD,3565895,553778.50
MOJ,NOMS,10/06/2010,Gas,Kirkham,COFATHEC ENERGY PFI LTD,3543505,111579.07
MOJ,NOMS,10/06/2010,Contracted-out Other Services,North East DOMS Office,CLEARSPRINGS MANAGEMENT LTD,3406821,27686.89
MOJ,NOMS,10/06/2010,Specialist Contractors,MoJ ICT,CAPGEMINI UK PLC,3484104,115032.50
MOJ,NOMS,10/06/2010,Specialist Contractors,MoJ ICT,CAPGEMINI UK PLC,3504429,29727.50
MOJ,NOMS,10/06/2010,Contracted-out Probation Trusts,Cambridgeshire Probation Trust,CAMBRIDGESHIRE & PETERBOROUGH PROBATION TRUST,3575467,847553.00
MOJ,NOMS,10/06/2010,WIP - Acquisitions,Estates Capacity,BRIDGEND CUSTODIAL SERVICES LTD,3569428,3294053.76
MOJ,NOMS,10/06/2010,Contracted-out operation of prisons and detention centres,Parc,BRIDGEND CUSTODIAL SERVICES LTD,3569804,3071480.00
MOJ,NOMS,11/06/2010,WIP - Acquisitions,Estates Capacity,WATES CONSTRUCTION LTD,3578921,148872.50
MOJ,NOMS,11/06/2010,WIP - Acquisitions,Estates Capacity,WATES CONSTRUCTION LTD,3558306,60364.45
MOJ,NOMS,11/06/2010,WIP - Acquisitions,Estates Capacity,WATES CONSTRUCTION LTD,3578920,48880.00
MOJ,NOMS,11/06/2010,Contract IT Maintenance,MoJ ICT,TRIBAL CONSULTING,3578593,42375.00
MOJ,NOMS,11/06/2010,Contracted-out Probation Trusts,South East DOMS Office,THAMES VALLEY PROBATION TRUST,3577236,1800000.00
MOJ,NOMS,11/06/2010,Contracted-out Probation Trusts,South East DOMS Office,SURREY & SUSSEX PROBATION TRUST,3577205,4000000.00
MOJ,NOMS,11/06/2010,Contract IT Maintenance,NOMS ICT,SAP (UK) LTD,3578568,59180.00
MOJ,NOMS,11/06/2010,Contracted-out operation of prisons and detention centres,Peterborough,PETERBOROUGH PRISON MANAGEMENT LTD,3570493,1188321.45
MOJ,NOMS,11/06/2010,Contracted-out Resettlement Services,NOMS CFO,PERTEMPS PEOPLE DEVELOPMENT GROUP,3578691,82917.65
MOJ,NOMS,11/06/2010,Contracted-out Probation Boards,Wayland,NORFOLK AND SUFFOLK PROBATION TRUST,3549271,26423.86
MOJ,NOMS,11/06/2010,Contracted-out Probation Trusts,Merseyside Probation Trust,MERSEYSIDE PROBATION TRUST,3575783,2500000.00
MOJ,NOMS,11/06/2010,Early Retirements,Director of Probation's Office,LONDON PENSIONS FUND AUTHORITY,3579932,75728.81
MOJ,NOMS,11/06/2010,"New structural works, structural maintenance and equipment",Reading,LATCHMORE ROOFING LTD,3578419,78372.50
MOJ,NOMS,11/06/2010,"New structural works, structural maintenance and equipment",Reading,LATCHMORE ROOFING LTD,3577257,-39186.25
MOJ,NOMS,11/06/2010,WIP - Acquisitions,Estates Capacity,KIER REGIONAL LTD,3571063,8932250.13
MOJ,NOMS,11/06/2010,WIP - Professional Fees,Estates Capacity,JACOBS ENGINEERING UK,3562342,43377.33
MOJ,NOMS,11/06/2010,WIP - Professional Fees,Estates Capacity,JACOBS ENGINEERING UK,3580190,-43377.33
MOJ,NOMS,11/06/2010,WIP - Professional Fees,Estates Capacity,JACOBS ENGINEERING UK,3536070,33804.63
MOJ,NOMS,11/06/2010,WIP - Professional Fees,Estates Capacity,JACOBS ENGINEERING UK,3580597,-33804.63
MOJ,NOMS,11/06/2010,WIP - Professional Fees,Estates Capacity,JACOBS ENGINEERING UK,3582004,32594.89
MOJ,NOMS,11/06/2010,WIP - Professional Fees,Estates Capacity,JACOBS ENGINEERING UK,3573441,29331.74
MOJ,NOMS,11/06/2010,WIP - Acquisitions,Estates Capacity,INTERSERVE PROJECT SERVICES LTD,3578723,128676.60
MOJ,NOMS,11/06/2010,Resource Grants / Grant-in-Aid,Wales/Cymru DOMS Office,INTERACTIVE (RHYL) LTD,3573042,56250.00
MOJ,NOMS,11/06/2010,General Maintenance Materials,Estates Capacity,HOME OFFICE,3564762,26376.58
MOJ,NOMS,11/06/2010,Contracted-out Probation Trusts,Gloucestershire Probation Trust,GLOUCESTERSHIRE PROBATION TRUST,3580349,635783.33
MOJ,NOMS,11/06/2010,Contracted-out operation of prisons and detention centres,Altcourse,FAZAKERLEY PRISON SERVICES LTD,3578418,30000.00
MOJ,NOMS,11/06/2010,WIP - Acquisitions,Estates Capacity,CARILLION CONSTRUCTION LTD,3578651,505555.50
MOJ,NOMS,11/06/2010,WIP - Acquisitions,Estates Capacity,CALEDONIAN BUILDING SYSTEMS,3580802,610562.90
MOJ,NOMS,11/06/2010,Works,Estates Capacity,C R H FENCING LTD,3522749,65735.38
MOJ,NOMS,11/06/2010,Works,Estates Capacity,C R H FENCING LTD,3522763,65735.38
MOJ,NOMS,11/06/2010,Contracted-out operation of prisons and detention centres,Bronzefield,ASHFORD PRISON SERVICES LIMITED,3570498,2255069.66
MOJ,NOMS,11/06/2010,Specialist Contractors,NOMS ICT,ASE CONSULTING,3578456,34897.50
MOJ,NOMS,11/06/2010,Specialist Contractors,NOMS ICT,ASE CONSULTING,3578457,27759.38
MOJ,NOMS,11/06/2010,Contracted-out Catering Services,Hewell,ARAMARK LTD,3579924,28596.00
MOJ,NOMS,11/06/2010,Rates and Ground Rents,Estates Capacity,FENLAND DISTRICT COUNCIL,3472433,44298.00
MOJ,NOMS,11/06/2010,Rates and Ground Rents,Estates Capacity,CITY OF WAKEFIELD,3472331,36939.35
MOJ,NOMS,11/06/2010,Rates and Ground Rents,Estates Capacity,KINGSTON-UPON-HULL CITY COUNCIL,3472429,29588.58
MOJ,NOMS,11/06/2010,Rates and Ground Rents,Estates Capacity,WARRINGTON BOROUGH COUNCIL,3472333,27945.00
MOJ,NOMS,14/06/2010,WIP - Acquisitions,Estates Capacity,WATES CONSTRUCTION LTD,3580647,314267.06
MOJ,NOMS,14/06/2010,Training and Further Education Courses,Learning and Development Group,UNIVERSITY OF PORTSMOUTH,3570583,48752.01
MOJ,NOMS,14/06/2010,Legal Representation,Chief Operating Officers Office,TREASURY SOLICITORS,3582205,662687.90
MOJ,NOMS,14/06/2010,Legal Representation,Chief Operating Officers Office,TREASURY SOLICITORS,3582275,595268.92
MOJ,NOMS,14/06/2010,Contracted-out operation of prisons and detention centres,Doncaster,SERCO LTD,3578441,1896709.77
MOJ,NOMS,14/06/2010,General Maintenance Materials,Holloway,RAVENSTONE (CENTRAL) LTD,3563332,109880.71
MOJ,NOMS,14/06/2010,Counselling & Advisory Costs,Bullingdon,R A P T,3582316,35349.00
MOJ,NOMS,14/06/2010,Contracted-out operation of prisons and detention centres,Rye Hill,ONLEY PRISON SERVICES LTD,3582187,43651.50
MOJ,NOMS,14/06/2010,Contracted-out operation of prisons and detention centres,Rye Hill,ONLEY PRISON SERVICES LTD,3582183,-42196.45
MOJ,NOMS,14/06/2010,Contracted-out Probation Trusts,Northumbria Probation Trust,NORTHUMBRIA PROBATION TRUST,3581721,2375000.00
MOJ,NOMS,14/06/2010,Specialist Contractors,NOMIS Programme,NES IT,3495394,31681.11
MOJ,NOMS,14/06/2010,Raw Materials Issued,Offender Employment Skills & Services Group,L & P (PSCS),3571238,38317.14
MOJ,NOMS,14/06/2010,WIP - Acquisitions,Estates Capacity,KIER REGIONAL LTD,3568388,61264.50
MOJ,NOMS,14/06/2010,WIP - Professional Fees,Estates Capacity,JACOBS ENGINEERING UK,3580546,33746.50
MOJ,NOMS,14/06/2010,Contract IT Maintenance,Procurement Group,HP ENTERPRISE SERVICES UK LTD,3580307,83577.00
MOJ,NOMS,14/06/2010,Gas,Highpoint,CORONA ENERGY RETAIL 4 LTD,3508302,41951.30
MOJ,NOMS,14/06/2010,Contracted-out Resettlement Services,ROM - Yorkshire & Humberside,CLEARSPRINGS MANAGEMENT LTD,3546421,44239.76
MOJ,NOMS,14/06/2010,Contracted-out Medical services,Whitemoor,CAMBRIDGESHIRE & PETERBOROUGH MENTAL HEALTH PARTNERSHIP,3581483,128532.53
MOJ,NOMS,14/06/2010,Subsistence,HOPPS Payroll Charge,CALDER CONFERENCE,3582241,86410.29
MOJ,NOMS,14/06/2010,Subsistence,HOPPS Payroll Charge,CALDER CONFERENCE,3582239,29045.52
MOJ,NOMS,15/06/2010,WIP - Acquisitions,Estates Capacity,WATES CONSTRUCTION LTD,3582790,105750.00
MOJ,NOMS,15/06/2010,WIP - Acquisitions,Estates Capacity,VINCI CONSTRUCTION UK LTD,3583510,35506.15
MOJ,NOMS,15/06/2010,WIP - Acquisitions,NOMIS Programme,STERIA LTD,3583633,132696.68
MOJ,NOMS,15/06/2010,"New structural works, structural maintenance and equipment",Leeds,SANGWIN LIMITED,3567181,141983.48
MOJ,NOMS,15/06/2010,Counselling & Advisory Costs,Holloway,R A P T,3584304,39686.50
MOJ,NOMS,15/06/2010,Counselling & Advisory Costs,Wormwood Scrubs,R A P T,3549812,36411.50
MOJ,NOMS,15/06/2010,Counselling & Advisory Costs,Wormwood Scrubs,R A P T,3584388,36404.55
MOJ,NOMS,15/06/2010,Counselling & Advisory Costs,Highdown,R A P T,3547496,34919.00
MOJ,NOMS,15/06/2010,Counselling & Advisory Costs,Highdown,R A P T,3584301,31562.28
MOJ,NOMS,15/06/2010,Counselling & Advisory Costs,Sheppey Clustered Services,R A P T,3547552,27025.00
MOJ,NOMS,15/06/2010,Contracted-out Probation Trusts,Nottinghamshire Probation Trust,NOTTINGHAMSHIRE PROBATION TRUST,3580838,1612000.00
MOJ,NOMS,15/06/2010,Contracted-out Probation Trusts,Nottinghamshire Probation Trust,NOTTINGHAMSHIRE PROBATION TRUST,3580837,1612000.00
MOJ,NOMS,15/06/2010,Contracted-out Probation Trusts,Nottinghamshire Probation Trust,NOTTINGHAMSHIRE PROBATION TRUST,3580637,-1612000.00
MOJ,NOMS,15/06/2010,Contracted-out Probation Trusts,Northumbria Probation Trust,NORTHUMBRIA PROBATION TRUST,3583787,415975.00
MOJ,NOMS,15/06/2010,Contracted-out Probation Trusts,Northumbria Probation Trust,NORTHUMBRIA PROBATION TRUST,3584398,415975.00
MOJ,NOMS,15/06/2010,Contracted-out Probation Boards,Onley,NORTHAMPTONSHIRE PROBATION TRUST,3563136,28825.56
MOJ,NOMS,15/06/2010,Contracted-out Probation Boards,Channings Wood,NATIONAL PROBATION SERVICE,3581618,35380.48
MOJ,NOMS,15/06/2010,Contracted-out Probation Boards,London DOMS Office,LONDON PROBATION TRUST,3572375,14658125.00
MOJ,NOMS,15/06/2010,Contracted-out Probation Trusts,Lancashire Probation Trust,LANCASHIRE PROBATION TRUST,3581279,2000000.00
MOJ,NOMS,15/06/2010,Contract IT Maintenance,MoJ ICT,HP ENTERPRISE SERVICES UK LTD,3582975,72115.67
MOJ,NOMS,15/06/2010,WIP - Acquisitions,MoJ ICT,HP ENTERPRISE SERVICES UK LTD,3584428,62856.98
MOJ,NOMS,15/06/2010,Rates and Ground Rents,South East DOMS Office,HOME OFFICE  ACCOUNTING OFFICER,3584195,78571.63
MOJ,NOMS,15/06/2010,Contracted-out Prison Shop,Chief Operating Officers Office,EXEL EUROPE1 LTD,3583658,1209702.80
MOJ,NOMS,15/06/2010,Electricity,Lindholme,EDF ENERGY,3584416,50828.00
MOJ,NOMS,15/06/2010,Electricity,Frankland,EDF ENERGY,3584471,38978.33
MOJ,NOMS,15/06/2010,Electricity,Wandsworth,EDF ENERGY,3584233,34786.11
MOJ,NOMS,15/06/2010,Electricity,Manchester,EDF ENERGY,3584380,34573.35
MOJ,NOMS,15/06/2010,Electricity,Acklington,EDF ENERGY,3584408,33216.66
MOJ,NOMS,15/06/2010,Electricity,Birmingham,EDF ENERGY,3584314,31553.97
MOJ,NOMS,15/06/2010,Electricity,Ranby,EDF ENERGY,3584501,31210.62
MOJ,NOMS,15/06/2010,Electricity,Bullingdon,EDF ENERGY,3584311,27793.24
MOJ,NOMS,15/06/2010,Electricity,Liverpool,EDF ENERGY,3584460,26808.62
MOJ,NOMS,15/06/2010,Electricity,Risley,EDF ENERGY,3584483,26417.87
MOJ,NOMS,15/06/2010,Electricity,Leeds,EDF ENERGY,3584232,26039.42
MOJ,NOMS,15/06/2010,Electricity,Full Sutton,EDF ENERGY,3584532,25900.58
MOJ,NOMS,15/06/2010,Electricity,Holme House,EDF ENERGY,3584414,25398.86
MOJ,NOMS,15/06/2010,Electricity,Highpoint,EDF ENERGY,3584503,25045.67
MOJ,NOMS,15/06/2010,Electricity,Wakefield,EDF ENERGY,3584418,25045.50
MOJ,NOMS,15/06/2010,Contracted-out Probation Trusts,Durham Tees Valley Probation Trust,DURHAM TEES VALLEY PROBATION TRUST,3583784,1873667.00
MOJ,NOMS,15/06/2010,Contracted-out Resettlement Services,East Midlands DOMS Office,CLEARSPRINGS MANAGEMENT LTD,3546279,58691.05
MOJ,NOMS,15/06/2010,Travel - Non-Taxable,HOPPS Payroll Charge,CARLSON WAGONLIT TRAVEL,3584495,94836.90
MOJ,NOMS,15/06/2010,Works,Estates Capacity,C R H FENCING LTD,3535332,25471.06
MOJ,NOMS,15/06/2010,Contracted-out Probation Trusts,Bedfordshire Probation Trust,BEDFORDSHIRE PROBATION TRUST,3581695,803147.00
MOJ,NOMS,15/06/2010,General Maintenance Materials,Shrewsbury,A R H ELECTRICAL SERVICES LTD,3560634,43040.25
MOJ,NOMS,16/06/2010,Contracted-out Probation Boards,Woodhill,THAMES VALLEY PROBATION TRUST,3586145,35317.62
MOJ,NOMS,16/06/2010,WIP - Acquisitions,Estates Capacity,SHAYLOR CONSTRUCTION LTD,3584237,732769.95
MOJ,NOMS,16/06/2010,Contracted-out Resettlement Services,NOMS CFO,PROBATION BOARD GRANTS,3586089,87697.20
MOJ,NOMS,16/06/2010,Consultancy,Organisational Development Group,P A CONSULTING SERVICES LTD,3540564,27334.26
MOJ,NOMS,16/06/2010,Consultancy,Organisational Development Group,P A CONSULTING SERVICES LTD,3582079,26397.95
MOJ,NOMS,16/06/2010,WIP - Acquisitions,Estates Capacity,KIER REGIONAL LTD,3586087,186564.15
MOJ,NOMS,16/06/2010,Contracted-out Library,Blantyre House,KENT COUNTY COUNCIL (KCS),3482864,27755.68
MOJ,NOMS,16/06/2010,Contracted-out Library,East Sutton Park,KENT COUNTY COUNCIL (KCS),3482863,27368.57
MOJ,NOMS,16/06/2010,Consumables,Procurement Group,JIANGSU SUNSHINE IMPORT & EXPORT CO LTD,3523138,38812.81
MOJ,NOMS,16/06/2010,WIP - Professional Fees,Estates Capacity,JACOBS ENGINEERING UK,3564903,44565.40
MOJ,NOMS,16/06/2010,WIP - Acquisitions,Estates Capacity,INTERSERVE PROJECT SERVICES LTD,3583344,573085.42
MOJ,NOMS,16/06/2010,WIP - Acquisitions,Estates Capacity,INTERSERVE PROJECT SERVICES LTD,3586381,143702.50
MOJ,NOMS,16/06/2010,WIP - Acquisitions,MoJ ICT,HP ENTERPRISE SERVICES UK LTD,3558606,396922.85
MOJ,NOMS,16/06/2010,WIP - Acquisitions,MoJ ICT,HP ENTERPRISE SERVICES UK LTD,3558599,73146.42
MOJ,NOMS,16/06/2010,WIP - Acquisitions,MoJ ICT,HP ENTERPRISE SERVICES UK LTD,3558632,41686.96
MOJ,NOMS,16/06/2010,Contracted-out Probation Trusts,South East DOMS Office,HAMPSHIRE PROBATION TRUST,3585450,2050000.00
MOJ,NOMS,16/06/2010,Other - Acquisitions,Feltham,FORD MOTOR CO LTD,3586572,33786.44
MOJ,NOMS,16/06/2010,Other - Acquisitions,Rochester,FORD MOTOR CO LTD,3585776,33117.88
MOJ,NOMS,16/06/2010,Prison Shop Cost of Sales,Chief Operating Officers Office,EXEL EUROPE1 LTD,3586483,363764.76
MOJ,NOMS,16/06/2010,Prison Shop Cost of Sales (No VAT),Chief Operating Officers Office,EXEL EUROPE1 LTD,3586483,222949.47
MOJ,NOMS,16/06/2010,Electricity,Woodhill,EDF ENERGY,3586985,27132.27
MOJ,NOMS,16/06/2010,Discharge Costs,DO NOT USE Operational Policy Unit,DWP - JOB CENTRE PLUS,3581800,187594.20
MOJ,NOMS,16/06/2010,Waste disposal,Chief Operating Officers Office,DISPOSAL SERVICES AGENCY MOD,3586758,25000.00
MOJ,NOMS,16/06/2010,WIP - Professional Fees,Estates Capacity,CYRIL SWEETT LTD,3562610,27335.79
MOJ,NOMS,16/06/2010,VISA Costs,MOJ Shared Services NOMS Delivery,COMPANY BARCLAYCARD,3577048,1805727.73
MOJ,NOMS,16/06/2010,Locks,FM Property Unit,CHUBB LOCKS CUSTODIAL SERVICES LTD,3587013,212764.35
MOJ,NOMS,16/06/2010,Professional Advice,Estates Capacity,ATKINS LTD,3557173,27355.47
MOJ,NOMS,16/06/2010,WIP - Professional Fees,Estates Capacity,AEDAS ARCHITECTS LTD,3585631,26571.87
MOJ,NOMS,17/06/2010,WIP - Acquisitions,High Security Prisons Group,MERCEDES-BENZ UK LTD,3552728,38343.78
MOJ,NOMS,17/06/2010,WIP - Acquisitions,High Security Prisons Group,MERCEDES-BENZ UK LTD,3552345,38343.78
MOJ,NOMS,17/06/2010,WIP - Acquisitions,High Security Prisons Group,MERCEDES-BENZ UK LTD,3552725,38343.78
MOJ,NOMS,17/06/2010,WIP - Acquisitions,High Security Prisons Group,MERCEDES-BENZ UK LTD,3552730,38343.78
MOJ,NOMS,17/06/2010,WIP - Acquisitions,High Security Prisons Group,MERCEDES-BENZ UK LTD,3552727,38343.78
MOJ,NOMS,17/06/2010,WIP - Acquisitions,High Security Prisons Group,MERCEDES-BENZ UK LTD,3552729,38343.78
MOJ,NOMS,17/06/2010,WIP - Acquisitions,High Security Prisons Group,MERCEDES-BENZ UK LTD,3552726,38343.78
MOJ,NOMS,17/06/2010,Contracted-out Computer Services,Quantum,HP ENTERPRISE SERVICES UK LTD,3588281,2283229.48
MOJ,NOMS,17/06/2010,Contract IT Maintenance,NOMS ICT,HP ENTERPRISE SERVICES UK LTD,3542978,1014921.25
MOJ,NOMS,17/06/2010,Contract IT Maintenance,NOMS ICT,HP ENTERPRISE SERVICES UK LTD,3588491,928414.01
MOJ,NOMS,17/06/2010,Contract IT Maintenance,NOMS ICT,HP ENTERPRISE SERVICES UK LTD,3587532,853535.17
MOJ,NOMS,17/06/2010,Contract IT Maintenance,NOMS ICT,HP ENTERPRISE SERVICES UK LTD,3542977,273450.43
MOJ,NOMS,17/06/2010,Contracted-out Computer Services,Quantum,HP ENTERPRISE SERVICES UK LTD,3588261,268624.00
MOJ,NOMS,17/06/2010,Contracted-out Computer Services,Quantum,HP ENTERPRISE SERVICES UK LTD,3588272,263858.81
MOJ,NOMS,17/06/2010,Contracted-out Other Services,Quantum,HP ENTERPRISE SERVICES UK LTD,3588281,246129.20
MOJ,NOMS,17/06/2010,Contracted-out Other Services,Quantum,HP ENTERPRISE SERVICES UK LTD,3588282,149146.66
MOJ,NOMS,17/06/2010,Contract IT Maintenance,NOMS ICT,HP ENTERPRISE SERVICES UK LTD,3588492,121306.66
MOJ,NOMS,17/06/2010,Contract IT Maintenance,NOMS ICT,HP ENTERPRISE SERVICES UK LTD,3587530,102246.18
MOJ,NOMS,17/06/2010,WIP - Acquisitions,MoJ ICT,HP ENTERPRISE SERVICES UK LTD,3526021,101160.84
MOJ,NOMS,17/06/2010,Contract IT Maintenance,NOMS ICT,HP ENTERPRISE SERVICES UK LTD,3588493,91773.34
MOJ,NOMS,17/06/2010,Contracted-out Computer Services,Quantum,HP ENTERPRISE SERVICES UK LTD,3588253,54170.93
MOJ,NOMS,17/06/2010,Contract IT Maintenance,NOMS ICT,HP ENTERPRISE SERVICES UK LTD,3542719,39460.17
MOJ,NOMS,17/06/2010,Contracted-out Other Services,Quantum,HP ENTERPRISE SERVICES UK LTD,3588278,35213.11
MOJ,NOMS,17/06/2010,Contracted-out Computer Services,Quantum,HP ENTERPRISE SERVICES UK LTD,3588256,32872.90
MOJ,NOMS,17/06/2010,Other - Acquisitions,Lancaster Farms,FORD MOTOR CO LTD,3585149,37409.50
MOJ,NOMS,17/06/2010,Contracted-out Catering Services,Holme House,ESS SUPPORT SERVICES WORLDWIDE,3577099,36388.17
MOJ,NOMS,17/06/2010,Electricity,Belmarsh,EDF ENERGY,3540088,37889.47
MOJ,NOMS,17/06/2010,Buildings - Acquisitions,Belmarsh,DRAX (UK) LTD,3565408,32263.94
MOJ,NOMS,17/06/2010,In Cell TV Costs,Unallocated Budgets,COMPUTACENTER (U K) LTD,3588407,49229.23
MOJ,NOMS,17/06/2010,Contracted-out Other Services,ROM - West Midlands,CLEARSPRINGS MANAGEMENT LTD,3588005,63809.18
MOJ,NOMS,17/06/2010,"Books, Stationery & IT Consumables",Offender Employment Skills & Services Group,CHARLES FELLOWS SUPPLIES LTD,3572018,69784.43
MOJ,NOMS,17/06/2010,Counselling & Advisory Costs,Eastwood Park,AVON & WILTSHIRE MENTAL HEALTH PARTNERSHIP N H S TRUST,3564417,36754.00
MOJ,NOMS,18/06/2010,WIP - Acquisitions,Estates Capacity,WILLMOTT DIXON CONSTRUCTION LTD,3571048,366691.65
MOJ,NOMS,18/06/2010,WIP - Acquisitions,Estates Capacity,WILLMOTT DIXON CONSTRUCTION LTD,3589553,-366691.65
MOJ,NOMS,18/06/2010,WIP - Acquisitions,Estates Capacity,WILLMOTT DIXON CONSTRUCTION LTD,3589552,366690.48
MOJ,NOMS,18/06/2010,WIP - Acquisitions,Estates Capacity,WATES CONSTRUCTION LTD,3583343,719456.03
MOJ,NOMS,18/06/2010,WIP - Acquisitions,Estates Capacity,WATES CONSTRUCTION LTD,3583341,132020.65
MOJ,NOMS,18/06/2010,WIP - Acquisitions,Estates Capacity,WATES CONSTRUCTION LTD,3583342,89915.70
MOJ,NOMS,18/06/2010,WIP - Acquisitions,Estates Capacity,WATES CONSTRUCTION LTD,3523902,68150.00
MOJ,NOMS,18/06/2010,Contract IT Maintenance,MoJ ICT,STERIA LTD,3582359,4817197.06
MOJ,NOMS,18/06/2010,WIP - Acquisitions,MoJ ICT,STERIA LTD,3582359,1947740.21
MOJ,NOMS,18/06/2010,Contracted-out Electronic Monitoring,National Operations Group,SERCO LTD,3580299,3770493.07
MOJ,NOMS,18/06/2010,"New structural works, structural maintenance and equipment",East Midlands DOMS Office,RHODAR LTD,3536391,-101733.26
MOJ,NOMS,18/06/2010,"New structural works, structural maintenance and equipment",East Midlands DOMS Office,RHODAR LTD,3536392,69670.45
MOJ,NOMS,18/06/2010,"New structural works, structural maintenance and equipment",East Midlands DOMS Office,RHODAR LTD,3536393,32062.81
MOJ,NOMS,18/06/2010,Contracted-out Resettlement Services,ROM - Yorkshire & Humberside,NACRO SHEFFIELD,3589209,169000.00
MOJ,NOMS,18/06/2010,"New structural works, structural maintenance and equipment",Feltham,LONGCROSS GROUP LTD,3589559,148463.62
MOJ,NOMS,18/06/2010,Training and Further Education Courses,MOJ Shared Services NOMS Delivery,LEEDS COLLEGE OF BUILDING,3566195,31526.65
MOJ,NOMS,18/06/2010,Raw Materials - ESS/LBA Industries,Frankland,L & P (PSCS),3589918,95200.00
MOJ,NOMS,18/06/2010,WIP - Acquisitions,Estates Capacity,KIER REGIONAL LTD,3582844,369158.35
MOJ,NOMS,18/06/2010,WIP - Acquisitions,Estates Capacity,KIER REGIONAL LTD,3580640,274950.00
MOJ,NOMS,18/06/2010,Clothing,Offender Employment Skills & Services Group,JAMES WALKER TEXTILES LIMITED,3585967,39656.25
MOJ,NOMS,18/06/2010,WIP - Acquisitions,Estates Capacity,INTERSERVE PROJECT SERVICES LTD,3587976,328042.38
MOJ,NOMS,18/06/2010,WIP - Acquisitions,Estates Capacity,INTERSERVE PROJECT SERVICES LTD,3585528,293372.83
MOJ,NOMS,18/06/2010,Legal Representation,Estates Capacity,EVERSHEDS LLP,3531667,47321.35
MOJ,NOMS,18/06/2010,Legal Representation,Estates Capacity,EVERSHEDS LLP,3551858,45886.10
MOJ,NOMS,18/06/2010,Legal Representation,Estates Capacity,EVERSHEDS LLP,3531666,45020.20
MOJ,NOMS,18/06/2010,Legal Representation,Estates Capacity,EVERSHEDS LLP,3551859,38234.50
MOJ,NOMS,18/06/2010,Electricity,Wymott,EDF ENERGY,3550752,62419.36
MOJ,NOMS,18/06/2010,Electricity,Risley,EDF ENERGY,3550741,28059.86
MOJ,NOMS,18/06/2010,Electricity,Wormwood Scrubs,EDF ENERGY,3537118,26345.15
MOJ,NOMS,18/06/2010,Consultancy,Estates Capacity,DELOITTE MCS LTD,3576208,389904.33
MOJ,NOMS,18/06/2010,WIP - Acquisitions,Estates Capacity,CRISPIN & BORST LTD,3575647,97575.16
MOJ,NOMS,18/06/2010,Gas,Kirkham,COFATHEC ENERGY PFI LTD,3590122,68044.81
MOJ,NOMS,18/06/2010,Contracted-out Other Services,Drake Hall,COFATHEC ENERGY PFI LTD,3590121,45295.91
MOJ,NOMS,18/06/2010,Contracted-out Other Services,New Hall,COFATHEC ENERGY PFI LTD,3590126,38479.87
MOJ,NOMS,18/06/2010,Contracted-out Other Services,Gloucester,COFATHEC ENERGY PFI LTD,3541411,35804.68
MOJ,NOMS,18/06/2010,Specialist Contractors,Estates Capacity,CENTRAL OFFICE OF INFORMATION,3520169,32325.41
MOJ,NOMS,18/06/2010,Works,Estates Capacity,C R H FENCING LTD,3523328,131470.75
MOJ,NOMS,18/06/2010,Works,Estates Capacity,C R H FENCING LTD,3522011,-131470.75
MOJ,NOMS,18/06/2010,Works,Estates Capacity,C R H FENCING LTD,3520704,70852.50
MOJ,NOMS,18/06/2010,Other - Acquisitions,Wymott,BRIGGS EQUIPMENT UK LTD,3588657,28162.40
MOJ,NOMS,18/06/2010,Contracted-out operation of prisons and detention centres,Forest Bank,AGECROFT PRISON MANAGEMENT LTD,3582978,3284418.89
MOJ,NOMS,18/06/2010,WIP - Acquisitions,Estates Capacity,AGECROFT PRISON MANAGEMENT LTD,3584218,577752.29
MOJ,NOMS,18/06/2010,Contracted-out operation of prisons and detention centres,Forest Bank,AGECROFT PRISON MANAGEMENT LTD,3590150,33705.09
MOJ,NOMS,18/06/2010,WIP - Professional Fees,Estates Capacity,AEDAS ARCHITECTS LTD,3565798,55966.04
MOJ,NOMS,18/06/2010,Contracted-out Resettlement Services,Rehabilitation Services Group,ADFAM NATIONAL,3423602,31941.25
MOJ,NOMS,21/06/2010,Training and Further Education Courses,Learning and Development Group,UNIVERSITY OF PORTSMOUTH,3586601,56340.04
MOJ,NOMS,21/06/2010,Training and Further Education Courses,Learning and Development Group,UNIVERSITY OF PORTSMOUTH,3564530,28521.63
MOJ,NOMS,21/06/2010,Legal Representation,Chief Operating Officers Office,TREASURY SOLICITORS,3590096,317828.39
MOJ,NOMS,21/06/2010,Contracted-out Resettlement Services,Rehabilitation Services Group,TIME BANKS UK,3588651,52800.00
MOJ,NOMS,21/06/2010,Contracted-out Education,Dover,THE MANCHESTER COLLEGE,3548071,29722.35
MOJ,NOMS,21/06/2010,WIP - Acquisitions,NOMIS Programme,STERIA LTD,3590970,112038.60
MOJ,NOMS,21/06/2010,Contracted-out Probation Boards,Wandsworth,NATIONAL PROBATION SERVICE,3511175,50719.48
MOJ,NOMS,21/06/2010,Raw Materials Issued,Featherstone,L & P (PSCS),3589919,83709.00
MOJ,NOMS,21/06/2010,Rates and Ground Rents,Business and Service Development Group,KING STURGE & CO LTD,3581913,28140.21
MOJ,NOMS,21/06/2010,"New structural works, structural maintenance and equipment",Erlestoke,IAN WILLIAMS LTD,3524010,77319.52
MOJ,NOMS,21/06/2010,Contracted-out Computer Services,Chief Operating Officers Office,HP ENTERPRISE SERVICES UK LTD,3582405,60072.35
MOJ,NOMS,21/06/2010,Contracted-out Electronic Monitoring,National Operations Group,G4S CARE & JUSTICE SERVICES LTD,3586924,4707456.58
MOJ,NOMS,21/06/2010,Contracted-out operation of prisons and detention centres,Altcourse,FAZAKERLEY PRISON SERVICES LTD,3571844,660804.37
MOJ,NOMS,21/06/2010,Rates and Ground Rents,Lancaster Castle,DUCHY OF LANCASTER,3556882,121542.00
MOJ,NOMS,21/06/2010,Contract IT Maintenance,MoJ ICT,COMPUTACENTER (U K) LTD,3496225,170589.60
MOJ,NOMS,21/06/2010,Contracted-out Other Services,East of England Regional NOMS Office,CLEARSPRINGS MANAGEMENT LTD,3588516,49348.40
MOJ,NOMS,21/06/2010,Subsistence,HOPPS Payroll Charge,CALDER CONFERENCE,3592077,95083.42
MOJ,NOMS,21/06/2010,Subsistence,HOPPS Payroll Charge,CALDER CONFERENCE,3592076,55425.07
MOJ,NOMS,21/06/2010,Contracted-out Probation Boards,Eastwood Park,AVON AND SOMERSET PROBATION TRUST,3558867,25451.76
MOJ,NOMS,22/06/2010,Funding payments to Probation Boards,West Midlands DOMS Office,WEST MERCIA PROBATION TRUST,3592658,150000.00
MOJ,NOMS,22/06/2010,WIP - Acquisitions,Estates Capacity,VINCI CONSTRUCTION UK LTD,3578018,64244.57
MOJ,NOMS,22/06/2010,Contract IT Maintenance,MoJ ICT,TRIBAL CONSULTING,3587097,52135.50
MOJ,NOMS,22/06/2010,Contract IT Maintenance,MoJ ICT,TRIBAL CONSULTING,3578565,42375.00
MOJ,NOMS,22/06/2010,Contract IT Maintenance,MoJ ICT,TRIBAL CONSULTING,3585027,42375.00
MOJ,NOMS,22/06/2010,"Prisoner Compensation over 5,000",Chief Operating Officers Office,TREASURY SOLICITORS,3593621,150000.00
MOJ,NOMS,22/06/2010,Water and Sewage,Hewell,SEVERN TRENT WATER LTD,3593705,43878.43
MOJ,NOMS,22/06/2010,Water and Sewage,Hewell,SEVERN TRENT WATER LTD,3593708,-43790.00
MOJ,NOMS,22/06/2010,Water and Sewage,Long Lartin,SEVERN TRENT WATER LTD,3593592,29273.88
MOJ,NOMS,22/06/2010,Contracted-out Resettlement Services,NOMS CFO,PERTEMPS PEOPLE DEVELOPMENT GROUP,3589621,26800.67
MOJ,NOMS,22/06/2010,Contracted-out Probation Trusts,Leicestershire Probation Trust,LEICESTERSHIRE&RUTLAND PROBATION TRUST,3593190,1264917.00
MOJ,NOMS,22/06/2010,WIP - Professional Fees,Estates Capacity,HLN ARCHITECTS (MIDLANDS) LTD,3593790,35187.85
MOJ,NOMS,22/06/2010,WIP - Professional Fees,Estates Capacity,HLN ARCHITECTS (MIDLANDS) LTD,3593789,-35187.85
MOJ,NOMS,22/06/2010,Contracted-out Other Services,East of England Regional NOMS Office,HERTFORDSHIRE POLICE AUTHORITY,3593493,30000.00
MOJ,NOMS,22/06/2010,Specialist Contractors,Estates Capacity,G V A GRIMLEY,3531577,26599.65
MOJ,NOMS,22/06/2010,Contracted-out operation of prisons and detention centres,Altcourse,FAZAKERLEY PRISON SERVICES LTD,3571849,3290656.20
MOJ,NOMS,22/06/2010,Training and Further Education Courses,Learning and Development Group,DE MONTFORT UNIVERSITY HIGHER EDUCATION CORPORATION,3593400,35048.35
MOJ,NOMS,22/06/2010,Travel - Non-Taxable,HOPPS Payroll Charge,CARLSON WAGONLIT TRAVEL,3593663,86125.08
MOJ,NOMS,23/06/2010,WIP - Acquisitions,Estates Capacity,WATES CONSTRUCTION LTD,3594905,464794.75
MOJ,NOMS,23/06/2010,Contracted-out Other Services,Public Protection and Mental Health Group,UNIVERSITY OF NEWCASTLE-UPON-TYNE,3504484,61486.58
MOJ,NOMS,23/06/2010,"Prisoner Compensation over 5,000",Chief Operating Officers Office,TREASURY SOLICITORS,3595710,29000.00
MOJ,NOMS,23/06/2010,Consultancy,Estates Capacity,SFW LTD,3594631,108288.00
MOJ,NOMS,23/06/2010,Payments to voluntary Organisations,Business and Service Development Group,ORMISTON CHILDREN & FAMILIES TRUST,3510167,29000.00
MOJ,NOMS,23/06/2010,"New structural works, structural maintenance and equipment",East of England Regional NOMS Office,KINETICS,3595100,45825.00
MOJ,NOMS,23/06/2010,Structural works / maintenance - Fees & professional services,Estates Capacity,JACOBS ENGINEERING UK,3546475,39014.77
MOJ,NOMS,23/06/2010,WIP - Acquisitions,Estates Capacity,ISG REGIONS LTD,3566363,271313.38
MOJ,NOMS,23/06/2010,WIP - Acquisitions,Estates Capacity,INTERSERVE PROJECT SERVICES LTD,3595549,312543.55
MOJ,NOMS,23/06/2010,Contract IT Maintenance,NOMS ICT,HP ENTERPRISE SERVICES UK LTD,3582407,29641.81
MOJ,NOMS,23/06/2010,Contracted-out operation of prisons and detention centres,Wolds,G4S CARE & JUSTICE SERVICES LTD,3570444,763534.68
MOJ,NOMS,23/06/2010,WIP - Acquisitions,Estates Capacity,CRISPIN & BORST LTD,3578045,117465.93
MOJ,NOMS,23/06/2010,Gas,Holloway,CORONA ENERGY RETAIL 4 LTD,3462308,27394.01
MOJ,NOMS,23/06/2010,Contracted-out Other Services,Gartree,COFATHEC ENERGY PFI LTD,3595795,33688.47
MOJ,NOMS,23/06/2010,Contracted-out Other Services,ROM - North West,CLEARSPRINGS MANAGEMENT LTD,3546287,86100.92
MOJ,NOMS,23/06/2010,WIP - Professional Fees,Estates Capacity,ATKINS LTD,3529072,76306.98
MOJ,NOMS,23/06/2010,Contracted-out Catering Services,Woodhill,ARAMARK LTD,3584437,25650.35
MOJ,NOMS,23/06/2010,Rates and Ground Rents,Estates Capacity,MEDWAY COUNCIL,3543204,53216.15
MOJ,NOMS,24/06/2010,"Staff Compensation over 5,000",Dover,TREASURY SOLICITORS,3595681,100000.00
MOJ,NOMS,24/06/2010,Water and Sewage,Sheppey Clustered Services,SOUTHERN WATER SERVICES LTD,3547512,34704.16
MOJ,NOMS,24/06/2010,Counselling & Advisory Costs,Pentonville,R A P T,3547507,53159.75
MOJ,NOMS,24/06/2010,Counselling & Advisory Costs,Wandsworth,R A P T,3549807,46684.00
MOJ,NOMS,24/06/2010,Counselling & Advisory Costs,Wandsworth,R A P T,3597111,42508.77
MOJ,NOMS,24/06/2010,Contracted-out Visitor's Centres,Belmarsh,PRISON ADVICE & CARE TRUST (P A C T),3561354,37750.00
MOJ,NOMS,24/06/2010,Miscellaneous,IW Cluster,MCM CONSTRUCTION LTD,3581592,59230.82
MOJ,NOMS,24/06/2010,Buildings - Acquisitions,Brixton,LONGCROSS GROUP LTD,3580668,88843.88
MOJ,NOMS,24/06/2010,Buildings - Acquisitions,Brixton,LONGCROSS GROUP LTD,3527809,61685.90
MOJ,NOMS,24/06/2010,Electricity,Sheppey Clustered Services,EDF ENERGY,3537288,32342.33
MOJ,NOMS,24/06/2010,Electricity,Sheppey Clustered Services,EDF ENERGY,3540081,29685.96
MOJ,NOMS,24/06/2010,Contracted-out Probation Trusts,Durham,DURHAM TEES VALLEY PROBATION TRUST,3594493,48901.07
MOJ,NOMS,24/06/2010,Contracted-out Probation Boards,ROM - South East,CLEARSPRINGS MANAGEMENT LTD,3545702,76952.56
MOJ,NOMS,24/06/2010,Contracted-out Probation Boards,ROM - South East,CLEARSPRINGS MANAGEMENT LTD,3588721,74795.89
MOJ,NOMS,24/06/2010,"Books, Stationery & IT Consumables",Offender Employment Skills & Services Group,CARPENTER LTD,3536412,74597.86
MOJ,NOMS,25/06/2010,Contracted-out Computer Services,NOMIS Programme,STERIA LTD,3590971,46375.00
MOJ,NOMS,25/06/2010,Rates and Ground Rents,Estates Capacity,ST EDMUNDSBURY BOROUGH COUNCIL,3598970,283627.41
MOJ,NOMS,25/06/2010,Contracted-out Resettlement Services,ROM - Yorkshire & Humberside,SHELTER,3400322,37711.54
MOJ,NOMS,25/06/2010,Training and Further Education Courses,MOJ Shared Services NOMS Delivery,NEWCASTLE COLLEGE,3502987,26917.80
MOJ,NOMS,25/06/2010,Specialist Contractors,Procurement Group,NES IT,3586612,28200.00
MOJ,NOMS,25/06/2010,Contracted-out Probation Boards,Preston,LANCASHIRE PROBATION TRUST,3542863,37643.48
MOJ,NOMS,25/06/2010,WIP - Acquisitions,Estates Capacity,INTERSERVE PROJECT SERVICES LTD,3531243,148414.25
MOJ,NOMS,25/06/2010,WIP - Acquisitions,Estates Capacity,INTERSERVE PROJECT SERVICES LTD,3531242,82355.75
MOJ,NOMS,25/06/2010,WIP - Acquisitions,Estates Capacity,INTERSERVE PROJECT SERVICES LTD,3586382,49350.00
MOJ,NOMS,25/06/2010,Contract IT Maintenance,Procurement Group,HP ENTERPRISE SERVICES UK LTD,3582976,75891.38
MOJ,NOMS,25/06/2010,Contract IT Maintenance,NOMS ICT,HP ENTERPRISE SERVICES UK LTD,3598165,53045.44
MOJ,NOMS,25/06/2010,Contracted-out Probation Boards,Channings Wood,DEVON AND CORNWALL PROBATION TRUST,3543520,26676.38
MOJ,NOMS,25/06/2010,Contracted-out Other Services,Dartmoor,COFATHEC ENERGY SERVICES UK LTD,3598942,68507.47
MOJ,NOMS,25/06/2010,Contracted-out Other Services,IW Cluster,COFATHEC ENERGY SERVICES UK LTD,3598937,59887.09
MOJ,NOMS,25/06/2010,Contracted-out Other Services,Deerbolt,COFATHEC ENERGY SERVICES UK LTD,3598940,53002.28
MOJ,NOMS,25/06/2010,Contracted-out Other Services,IW Cluster,COFATHEC ENERGY SERVICES UK LTD,3598945,48877.77
MOJ,NOMS,25/06/2010,Other Fuels,Chelmsford,COFATHEC ENERGY SERVICES UK LTD,3598944,45129.79
MOJ,NOMS,25/06/2010,Subsistence,HOPPS Payroll Charge,CALDER CONFERENCE,3599003,96633.01
MOJ,NOMS,25/06/2010,Subsistence,HOPPS Payroll Charge,CALDER CONFERENCE,3599000,76072.61
MOJ,NOMS,25/06/2010,Clothing,Offender Employment Skills & Services Group,BURLINGTON UNIFORMS LTD,3546522,41931.38
MOJ,NOMS,25/06/2010,Counselling & Advisory Costs,Eastwood Park,AVON & WILTSHIRE MENTAL HEALTH PARTNERSHIP N H S TRUST,3595908,38677.00
MOJ,NOMS,25/06/2010,Counselling & Advisory Costs,Bristol,AVON & WILTSHIRE MENTAL HEALTH PARTNERSHIP N H S TRUST,3595907,30649.00
MOJ,NOMS,28/06/2010,Contracted-out Probation Trusts,Hewell,WEST MERCIA PROBATION TRUST,3599838,37227.72
MOJ,NOMS,28/06/2010,Probation - Approved Premisis,Public Protection and Mental Health Group,WEST LONDON MISSION REF: KATHERINE HUGHES HOUSE,3600506,56833.33
MOJ,NOMS,28/06/2010,WIP - Acquisitions,Estates Capacity,VINCI CONSTRUCTION UK LTD,3583511,33319.71
MOJ,NOMS,28/06/2010,Probation - Approved Premisis,Public Protection and Mental Health Group,ST. VINCENT DE PAUL SOCIETY REF ST CHRISTOPHERS,3600503,50166.67
MOJ,NOMS,28/06/2010,Probation - Approved Premisis,Public Protection and Mental Health Group,ST. VINCENT DE PAUL SOCIETY REF OZANAM HOUSE,3600501,54916.67
MOJ,NOMS,28/06/2010,Probation - Approved Premisis,Public Protection and Mental Health Group,ST JOHN'S APPROVED PREMISES,3600504,56166.67
MOJ,NOMS,28/06/2010,Contracted-out Escorts,Prisoner Escort & Custody Service (PECS),SERCO LTD,3598628,145340.50
MOJ,NOMS,28/06/2010,Probation - Approved Premisis,Public Protection and Mental Health Group,RIPON HOUSE,3600500,61083.33
MOJ,NOMS,28/06/2010,Rates and Ground Rents,Director of Finance Office,LEICESTER CITY COUNCIL,3600532,60584.37
MOJ,NOMS,28/06/2010,Probation - Approved Premisis,Public Protection and Mental Health Group,LANGLEY HOUSE TRUST,3600496,125100.08
MOJ,NOMS,28/06/2010,WIP - Acquisitions,Estates Capacity,INTERSERVE PROJECT SERVICES LTD,3600128,123375.00
MOJ,NOMS,28/06/2010,WIP - Acquisitions,Estates Capacity,INTERSERVE PROJECT SERVICES LTD,3537986,42950.20
MOJ,NOMS,28/06/2010,WIP - Acquisitions,MoJ ICT,HP ENTERPRISE SERVICES UK LTD,3600573,114062.75
MOJ,NOMS,28/06/2010,Specialist Contractors,Workforce Modernisation Programme,HP ENTERPRISE SERVICES UK LTD,3582638,77432.77
MOJ,NOMS,28/06/2010,Probation - Approved Premisis,Public Protection and Mental Health Group,HESTIA HOUSING SUPPORT CO LTD REF BATTERSEA & STREATHAM,3600493,61750.00
MOJ,NOMS,28/06/2010,Probation - Approved Premisis,Public Protection and Mental Health Group,HESTIA HOUSING SUPPORT CO LTD REF BATTERSEA & STREATHAM,3600491,50583.33
MOJ,NOMS,28/06/2010,"New structural works, structural maintenance and equipment",TSS West Midlands Area,EME POWER SYSTEMS LTD,3599745,30326.75
MOJ,NOMS,28/06/2010,Probation - Approved Premisis,Public Protection and Mental Health Group,ELIZABETH FRY APPROVED PREMISES,3600490,61250.00
MOJ,NOMS,28/06/2010,Gas,Manchester,CORONA ENERGY RETAIL 4 LTD,3549860,60755.24
MOJ,NOMS,28/06/2010,Other Fuels,Chelmsford,COFATHEC ENERGY SERVICES UK LTD,3520562,52193.67
MOJ,NOMS,28/06/2010,Probation - Approved Premisis,Public Protection and Mental Health Group,CARDIGAN HOUSE APPROVED PREMISE,3600484,54750.00
MOJ,NOMS,28/06/2010,Training and Further Education Courses,HR Policy & Reward Group,BERKSHIRE CONSULTANCE LTD,3600551,46081.49
MOJ,NOMS,28/06/2010,Probation - Approved Premisis,Public Protection and Mental Health Group,ASHLEY HOUSE,3600482,52833.33
MOJ,NOMS,28/06/2010,Probation - Approved Premisis,Public Protection and Mental Health Group,ADELAIDE HOUSE,3600481,55666.67
MOJ,NOMS,29/06/2010,WIP - Professional Fees,Estates Capacity,TURNER & TOWNSEND,3549970,29285.88
MOJ,NOMS,29/06/2010,Payments to voluntary Organisations,Chief Operating Officers Office,THE BUTLER TRUST,3601570,37500.00
MOJ,NOMS,29/06/2010,Water and Sewage,Wandsworth,THAMES WATER UTILITIES LTD,3516016,54003.72
MOJ,NOMS,29/06/2010,Water and Sewage,Wandsworth,THAMES WATER UTILITIES LTD,3565121,26419.72
MOJ,NOMS,29/06/2010,WIP - Acquisitions,NOMIS Programme,STERIA LTD,3590969,550439.70
MOJ,NOMS,29/06/2010,Counselling & Advisory Costs,Pentonville,R A P T,3584323,56310.80
MOJ,NOMS,29/06/2010,Rates and Ground Rents,Estates Capacity,NORTH KESTEVEN DISTRICT COUNCIL,3472366,82819.96
MOJ,NOMS,29/06/2010,Counselling & Advisory Costs,ROM - Yorkshire & Humberside,LIFELINE PROJECT,3601586,162025.10
MOJ,NOMS,29/06/2010,WIP - Acquisitions,Estates Capacity,KIER REGIONAL LTD,3600600,82931.50
MOJ,NOMS,29/06/2010,Contracted-out Building Maintenance,Estates Capacity,HOME OFFICE - AFU CASH MANAGEMENT,3601639,577683.12
MOJ,NOMS,29/06/2010,Contracted-out Building Maintenance,Estates Capacity,HOME OFFICE - AFU CASH MANAGEMENT,3601638,217090.68
MOJ,NOMS,29/06/2010,Contracted-out Building Maintenance,Estates Capacity,HOME OFFICE - AFU CASH MANAGEMENT,3601636,122500.00
MOJ,NOMS,29/06/2010,Prison Shop Cost of Sales,Chief Operating Officers Office,EXEL EUROPE1 LTD,3595162,562444.05
MOJ,NOMS,29/06/2010,Electricity,Sheppey Clustered Services,EDF ENERGY,3584450,32439.85
MOJ,NOMS,29/06/2010,Rates and Ground Rents,Dartmoor,DUCHY OF CORNWALL,3582424,667134.58
MOJ,NOMS,29/06/2010,Contracted-out Other Services,Blundeston,COFATHEC ENERGY SERVICES UK LTD,3600293,49323.26
MOJ,NOMS,29/06/2010,Travel - Non-Taxable,HOPPS Payroll Charge,CARLSON WAGONLIT TRAVEL,3601827,57609.44
MOJ,NOMS,29/06/2010,WIP - Acquisitions,Estates Capacity,CARILLION JM LIMITED,3576416,252244.08
MOJ,NOMS,29/06/2010,Other - Acquisitions,Sheppey Clustered Services,CAPITAL DENTAL EQUIPMENT,3511169,48725.75
MOJ,NOMS,29/06/2010,Resource Grants / Grant-in-Aid,ROM - Yorkshire & Humberside,CAMBRIDGE CENTRE (SADAC) LTD,3600864,50000.00
MOJ,NOMS,29/06/2010,Professional Advice,Director of HRs Office & Strategic Planning,CABINET OFFICE,3601631,98000.00
MOJ,NOMS,29/06/2010,Occupational Health Services,MOJ Project & ATOS,ATOS ORIGIN IT SERVICES UK LTD,3601011,115811.00
MOJ,NOMS,29/06/2010,Rates and Ground Rents,Estates Capacity,GREENWICH COUNCIL,3472444,86366.00
MOJ,NOMS,29/06/2010,Rates and Ground Rents,Estates Capacity,MILTON KEYNES COUNCIL,3472363,62100.00
MOJ,NOMS,29/06/2010,Rates and Ground Rents,Estates Capacity,LB OF HAMMERSMITH AND FULHAM,3495013,57722.00
MOJ,NOMS,29/06/2010,Rates and Ground Rents,Estates Capacity,CHERWELL DISTRICT COUNCIL,3472451,55476.00
MOJ,NOMS,29/06/2010,Rates and Ground Rents,Estates Capacity,REIGATE & BANSTEAD BOROUGH COUNCIL,3508304,54234.00
MOJ,NOMS,29/06/2010,Rates and Ground Rents,Estates Capacity,MANCHESTER CITY COUNCIL,3518493,51316.40
MOJ,NOMS,29/06/2010,Rates and Ground Rents,Estates Capacity,NORTHUMBERLAND COUNTY COUNCIL,3472413,50508.00
MOJ,NOMS,29/06/2010,Rates and Ground Rents,Estates Capacity,HUNTINGDONSHIRE DISTRICT COUNCIL,3495015,46782.00
MOJ,NOMS,29/06/2010,Rates and Ground Rents,Estates Capacity,SWALE BOROUGH COUNCIL,3472344,44712.00
MOJ,NOMS,29/06/2010,Rates and Ground Rents,Estates Capacity,PETERBOROUGH CITY COUNCIL,3472305,43470.00
MOJ,NOMS,29/06/2010,Rates and Ground Rents,Estates Capacity,LIVERPOOL CITY COUNCIL,3478615,43056.00
MOJ,NOMS,29/06/2010,Rates and Ground Rents,Estates Capacity,DONCASTER MET DIST COUNCIL,3472423,42927.39
MOJ,NOMS,29/06/2010,Rates and Ground Rents,Estates Capacity,LONDON BOROUGH OF ISLINGTON.,3472762,42315.00
MOJ,NOMS,29/06/2010,Rates and Ground Rents,Estates Capacity,LIVERPOOL CITY COUNCIL,3475192,40158.00
MOJ,NOMS,29/06/2010,Rates and Ground Rents,Estates Capacity,LANCASTER CITY COUNCIL,3495020,39537.00
MOJ,NOMS,29/06/2010,Rates and Ground Rents,Estates Capacity,EAST RIDING OF YORKSHIRE COUNCIL,3485218,39330.00
MOJ,NOMS,29/06/2010,Rates and Ground Rents,Estates Capacity,LONDON BOROUGH OF HOUNSLOW,3472763,38843.00
MOJ,NOMS,29/06/2010,Rates and Ground Rents,Estates Capacity,WANDSWORTH BOROUGH COUNCIL,3472332,38843.00
MOJ,NOMS,29/06/2010,Rates and Ground Rents,Estates Capacity,BROMSGROVE DISTRICT COUNCIL,3472765,37467.00
MOJ,NOMS,29/06/2010,Rates and Ground Rents,Estates Capacity,BIRMINGHAM CITY COUNCIL,3508297,37053.00
MOJ,NOMS,29/06/2010,Rates and Ground Rents,Estates Capacity,SPELTHORNE BOROUGH COUNCIL,3472297,36914.85
MOJ,NOMS,29/06/2010,Rates and Ground Rents,Estates Capacity,DACORUM BOROUGH COUNCIL,3472419,36564.76
MOJ,NOMS,29/06/2010,Rates and Ground Rents,Estates Capacity,CHORLEY BOROUGH COUNCIL,3495011,35886.25
MOJ,NOMS,29/06/2010,Rates and Ground Rents,Estates Capacity,BRECKLAND DISTRICT COUNCIL,3472479,35397.00
MOJ,NOMS,29/06/2010,Rates and Ground Rents,Estates Capacity,SURREY HEATH BOROUGH COUNCIL,3472342,34983.00
MOJ,NOMS,29/06/2010,Rates and Ground Rents,Estates Capacity,STOCKTON-ON-TEES BOROUGH COUNCIL,3472303,33682.05
MOJ,NOMS,29/06/2010,Rates and Ground Rents,Estates Capacity,SWALE BOROUGH COUNCIL,3472345,32913.00
MOJ,NOMS,29/06/2010,Rates and Ground Rents,Estates Capacity,DONCASTER MBC,3472424,32590.46
MOJ,NOMS,29/06/2010,Rates and Ground Rents,Estates Capacity,EAST STAFFORDSHIRE BOROUGH COUNCIL,3472472,31878.00
MOJ,NOMS,29/06/2010,Rates and Ground Rents,Estates Capacity,WYCHAVON DISTRICT COUNCIL,3472351,31257.00
MOJ,NOMS,29/06/2010,Rates and Ground Rents,Estates Capacity,RUTLAND DISTRICT COUNCIL,3472408,29187.00
MOJ,NOMS,29/06/2010,Rates and Ground Rents,Estates Capacity,SALFORD CITY COUNCIL,3528179,29178.77
MOJ,NOMS,29/06/2010,Rates and Ground Rents,Estates Capacity,ST EDMUNDSBURY BOROUGH COUNCIL,3472302,28976.84
MOJ,NOMS,29/06/2010,Rates and Ground Rents,Estates Capacity,WIGAN COUNCIL,3532826,28152.00
MOJ,NOMS,29/06/2010,Rates and Ground Rents,Estates Capacity,CHORLEY BOROUGH COUNCIL,3495010,27738.00
MOJ,NOMS,29/06/2010,Rates and Ground Rents,Estates Capacity,BRIDGEND COUNTY BOROUGH COUNCIL,3495009,27607.50
MOJ,NOMS,30/06/2010,Training Materials,NOMS Cymru Regional Services,X M A LTD,3518813,34487.42
MOJ,NOMS,30/06/2010,WIP - Acquisitions,Estates Capacity,WILLMOTT DIXON CONSTRUCTION LTD,3582570,1099660.50
MOJ,NOMS,30/06/2010,WIP - Acquisitions,Estates Capacity,WATES CONSTRUCTION LTD,3600409,35511.38
MOJ,NOMS,30/06/2010,WIP - Acquisitions,Estates Capacity,VINCI CONSTRUCTION UK LTD,3513112,159170.19
MOJ,NOMS,30/06/2010,"Prisoner Compensation over 5,000",Blantyre House,TREASURY SOLICITORS,3603638,175000.00
MOJ,NOMS,30/06/2010,Contracted-out Resettlement Services,NOMS CFO,THE MANCHESTER COLLEGE,3602502,389382.78
MOJ,NOMS,30/06/2010,Contract IT Maintenance,MoJ ICT,STERIA LTD,3600567,4459313.72
MOJ,NOMS,30/06/2010,WIP - Acquisitions,MoJ ICT,STERIA LTD,3600567,1044141.43
MOJ,NOMS,30/06/2010,Contract IT Maintenance,NOMS ICT,STERIA LTD,3600567,134993.90
MOJ,NOMS,30/06/2010,External Telecom Charges,MoJ ICT,STERIA LTD,3600567,97289.61
MOJ,NOMS,30/06/2010,Contracted-out Resettlement Services,NOMS CFO,SOVA,3575351,75169.41
MOJ,NOMS,30/06/2010,Contracted-out Resettlement Services,NOMS CFO,SOVA,3575349,64101.54
MOJ,NOMS,30/06/2010,WIP - Acquisitions,Estates Capacity,SKANSKA JV PROJECTS LTD - PUBLIC,3589460,501401.98
MOJ,NOMS,30/06/2010,Raw Materials - ESS/LBA Industries Internal Use within the HO,Offender Employment Skills & Services Group,PINDAR PLC,3602426,48203.67
MOJ,NOMS,30/06/2010,Inter-Unit Charge (IUC),Yorks & Humberside Estate Management,LEEDS CITY COUNCIL,3603643,25569.17
MOJ,NOMS,30/06/2010,WIP - Professional Fees,Estates Capacity,JACOBS ENGINEERING UK,3603383,50056.97
MOJ,NOMS,30/06/2010,Fencing,MOJ Shared Services NOMS Delivery,HP ENTERPRISE SERVICES UK LTD,3603792,446619.05
MOJ,NOMS,30/06/2010,Contract IT Maintenance,MOJ Shared Services NOMS Delivery,HP ENTERPRISE SERVICES UK LTD,3603792,306154.73
MOJ,NOMS,30/06/2010,Contract IT Maintenance,MOJ Project & ATOS,HP ENTERPRISE SERVICES UK LTD,3603792,155650.38
MOJ,NOMS,30/06/2010,Contract IT Maintenance,Learning and Development Group,HP ENTERPRISE SERVICES UK LTD,3603792,72763.39
MOJ,NOMS,30/06/2010,Prison Shop Cost of Sales,Chief Operating Officers Office,EXEL EUROPE1 LTD,3602619,524154.16
MOJ,NOMS,30/06/2010,Contracted-out Other Services,ROM - South West,CLEARSPRINGS MANAGEMENT LTD,3545703,44951.99
MOJ,NOMS,30/06/2010,Contracted-out Other Services,ROM - South West,CLEARSPRINGS MANAGEMENT LTD,3588723,44250.03
MOJ,NOMS,30/06/2010,Official Postage & Couriers,Styal,ACTION FOR CHILDREN SERVICES LTD,3595041,78886.57
